{"text_format":"1","workbook":"xlsx","n_sheets":7,"sheets":["COMMANDE","ENTREE","SORTIE","STOCK","Bilan marché 2016","1","2"],"not_rendered":{"charts":0,"images":0,"macros":1,"external_links":1,"defined_names":3,"comments":0,"pivot_tables":0},"unopened":[],"bounds":{"document_bytes":16777216,"sheet_cells":100000,"rows_first":2000,"rows_last":500,"rows_between":2000,"halvings":0,"cell_chars":16384,"cell_head_chars":4096},"cells_cut":0,"cells_raw":0,"read":"whole","date_system":"1900"}

{"sheet":"COMMANDE","index":0,"n_rows":31,"n_cols":5,"rows_kept":31,"cut":false,"hidden":false,"merged":[]}
[]
[{"$f":"IF(D7>E7,\"ATTENTION COMMANDE\",\"\")","v":"ATTENTION COMMANDE"}]
[]
[]
[]
["DATE","FOURNISSEUR","ARTICLE","QUANTITE BESEOIN","QUANTIE EN STOCK"]
[null,null,"pain",120,{"$f":"IF(C7=\"\",\"\",VLOOKUP(C7,STOCK!B:D,3,0))","v":0}]
[null,null,"salade verte",120,{"$f":"IF(C8=\"\",\"\",VLOOKUP(C8,STOCK!B:D,3,0))","v":0}]
[null,null,"celeris remoulade",15,{"$f":"IF(C9=\"\",\"\",VLOOKUP(C9,STOCK!B:D,3,0))","v":26}]
[null,null,"mayonnaise seaux",2,{"$f":"IF(C10=\"\",\"\",VLOOKUP(C10,STOCK!B:D,3,0))","v":2}]
[null,null,"huile de tournesol ",5,{"$f":"IF(C11=\"\",\"\",VLOOKUP(C11,STOCK!B:D,3,0))","v":30}]
[null,null,"huile de colza ",5,{"$f":"IF(C12=\"\",\"\",VLOOKUP(C12,STOCK!B:D,3,0))","v":45}]
[null,null,"moutarde seaux",1,{"$f":"IF(C13=\"\",\"\",VLOOKUP(C13,STOCK!B:D,3,0))","v":2}]
[null,null,"betteraves en dés",5,{"$f":"IF(C14=\"\",\"\",VLOOKUP(C14,STOCK!B:D,3,0))","v":27}]
[null,null,"ail frais",1,{"$f":"IF(C15=\"\",\"\",VLOOKUP(C15,STOCK!B:D,3,0))","v":2}]
[null,null,"persil botte",5,{"$f":"IF(C16=\"\",\"\",VLOOKUP(C16,STOCK!B:D,3,0))","v":0}]
[null,null,"pois chiches ",5,{"$f":"IF(C17=\"\",\"\",VLOOKUP(C17,STOCK!B:D,3,0))","v":9}]
[null,null,"poivrons lanieres ",2.5,{"$f":"IF(C18=\"\",\"\",VLOOKUP(C18,STOCK!B:D,3,0))","v":7.5}]
[null,null,"vinaigre balsamique ",2,{"$f":"IF(C19=\"\",\"\",VLOOKUP(C19,STOCK!B:D,3,0))","v":4}]
[null,null,"cordon bleu ","800 parts ",{"$f":"IF(C20=\"\",\"\",VLOOKUP(C20,STOCK!B:D,3,0))","v":100.62}]
[null,null,"petits pois carottes surgeles ",90,{"$f":"IF(C21=\"\",\"\",VLOOKUP(C21,STOCK!B:D,3,0))","v":90}]
[null,null,"oignon surgeles ",5,{"$f":"IF(C22=\"\",\"\",VLOOKUP(C22,STOCK!B:D,3,0))","v":10}]
[null,null,"vin blanc vrac ",4,{"$f":"IF(C23=\"\",\"\",VLOOKUP(C23,STOCK!B:D,3,0))","v":0}]
[null,null,"bouillon de legumes",1,{"$f":"IF(C24=\"\",\"\",VLOOKUP(C24,STOCK!B:D,3,0))","v":11}]
[null,null,"vinaigre",1,{"$f":"IF(C25=\"\",\"\",VLOOKUP(C25,STOCK!B:D,3,0))","v":14}]
[null,null,"bombel",480,{"$f":"IF(C26=\"\",\"\",VLOOKUP(C26,STOCK!B:D,3,0))","v":480}]
[null,null,"vache qui rit",80,{"$f":"IF(C27=\"\",\"\",VLOOKUP(C27,STOCK!B:D,3,0))","v":560}]
[null,null,"st moret ",240,{"$f":"IF(C28=\"\",\"\",VLOOKUP(C28,STOCK!B:D,3,0))","v":423}]
[null,null,"pomme ",400,{"$f":"IF(C29=\"\",\"\",VLOOKUP(C29,STOCK!B:D,3,0))","v":20}]
[null,null,"orange ",200,{"$f":"IF(C30=\"\",\"\",VLOOKUP(C30,STOCK!B:D,3,0))","v":0}]
[null,null,"banane",100,{"$f":"IF(C31=\"\",\"\",VLOOKUP(C31,STOCK!B:D,3,0))","v":0}]

{"sheet":"ENTREE","index":1,"n_rows":56,"n_cols":7,"rows_kept":56,"cut":false,"hidden":false,"merged":[]}
[]
[]
[]
[]
[]
[null,"DATE ","FOURNISSEUR","ARTICLE ","QUANTITE","STOCK","NOUVEAU STOCK ENTREE"]
[1,null,null,"mayonnaise seaux",2,{"$f":"IFERROR(VLOOKUP(D7,STOCK!B:D,3,0),\"\")","v":2}]
[2,null,null,"vache qui rit",80,{"$f":"IFERROR(VLOOKUP(D8,STOCK!B:D,3,0),\"\")","v":560}]
[3,null,null,"bombel",480,{"$f":"IFERROR(VLOOKUP(D9,STOCK!B:D,3,0),\"\")","v":480}]
[4,null,null,"st moret ",240,{"$f":"IFERROR(VLOOKUP(D10,STOCK!B:D,3,0),\"\")","v":423}]
[5,null,null,"cordon bleu",100,{"$f":"IFERROR(VLOOKUP(D11,STOCK!B:D,3,0),\"\")","v":""}]
[6,null,null,"steack haches",96,{"$f":"IFERROR(VLOOKUP(D12,STOCK!B:D,3,0),\"\")","v":""}]
[7,null,null,"feuillete hotdog",312,{"$f":"IFERROR(VLOOKUP(D13,STOCK!B:D,3,0),\"\")","v":""}]
[8,null,null,"feuillete fromage",495,{"$f":"IFERROR(VLOOKUP(D14,STOCK!B:D,3,0),\"\")","v":""}]
[9,null,null,"pomme de terre campagnarde",200,{"$f":"IFERROR(VLOOKUP(D15,STOCK!B:D,3,0),\"\")","v":""}]
[10,null,null,"oignon",10,{"$f":"IFERROR(VLOOKUP(D16,STOCK!B:D,3,0),\"\")","v":""}]
[11,null,null,"petits pois carottes",90,{"$f":"IFERROR(VLOOKUP(D17,STOCK!B:D,3,0),\"\")","v":""}]
[12,null,null,"poivron laniere",10,{"$f":"IFERROR(VLOOKUP(D18,STOCK!B:D,3,0),\"\")","v":""}]
[13,null,null,null,null,{"$f":"IFERROR(VLOOKUP(D19,STOCK!B:D,3,0),\"\")","v":""}]
[14,null,null,null,null,{"$f":"IFERROR(VLOOKUP(D20,STOCK!B:D,3,0),\"\")","v":""}]
[15,null,null,null,null,{"$f":"IFERROR(VLOOKUP(D21,STOCK!B:D,3,0),\"\")","v":""}]
[16,null,null,null,null,{"$f":"IFERROR(VLOOKUP(D22,STOCK!B:D,3,0),\"\")","v":""}]
[17,null,null,null,null,{"$f":"IFERROR(VLOOKUP(D23,STOCK!B:D,3,0),\"\")","v":""}]
[18,null,null,null,null,{"$f":"IFERROR(VLOOKUP(D24,STOCK!B:D,3,0),\"\")","v":""}]
[19,null,null,null,null,{"$f":"IFERROR(VLOOKUP(D25,STOCK!B:D,3,0),\"\")","v":""}]
[20,null,null,null,null,{"$f":"IFERROR(VLOOKUP(D26,STOCK!B:D,3,0),\"\")","v":""}]
[21,null,null,null,null,{"$f":"IFERROR(VLOOKUP(D27,STOCK!B:D,3,0),\"\")","v":""}]
[22,null,null,null,null,{"$f":"IFERROR(VLOOKUP(D28,STOCK!B:D,3,0),\"\")","v":""}]
[23,null,null,null,null,{"$f":"IFERROR(VLOOKUP(D29,STOCK!B:D,3,0),\"\")","v":""}]
[24,null,null,null,null,{"$f":"IFERROR(VLOOKUP(D30,STOCK!B:D,3,0),\"\")","v":""}]
[25,null,null,null,null,{"$f":"IFERROR(VLOOKUP(D31,STOCK!B:D,3,0),\"\")","v":""}]
[26,null,null,null,null,{"$f":"IFERROR(VLOOKUP(D32,STOCK!B:D,3,0),\"\")","v":""}]
[27,null,null,null,null,{"$f":"IFERROR(VLOOKUP(D33,STOCK!B:D,3,0),\"\")","v":""}]
[28,null,null,null,null,{"$f":"IFERROR(VLOOKUP(D34,STOCK!B:D,3,0),\"\")","v":""}]
[29,null,null,null,null,{"$f":"IFERROR(VLOOKUP(D35,STOCK!B:D,3,0),\"\")","v":""}]
[30,null,null,null,null,{"$f":"IFERROR(VLOOKUP(D36,STOCK!B:D,3,0),\"\")","v":""}]
[31,null,null,null,null,{"$f":"IFERROR(VLOOKUP(D37,STOCK!B:D,3,0),\"\")","v":""}]
[32,null,null,null,null,{"$f":"IFERROR(VLOOKUP(D38,STOCK!B:D,3,0),\"\")","v":""}]
[33,null,null,null,null,{"$f":"IFERROR(VLOOKUP(D39,STOCK!B:D,3,0),\"\")","v":""}]
[34,null,null,null,null,{"$f":"IFERROR(VLOOKUP(D40,STOCK!B:D,3,0),\"\")","v":""}]
[35,null,null,null,null,{"$f":"IFERROR(VLOOKUP(D41,STOCK!B:D,3,0),\"\")","v":""}]
[36,null,null,null,null,{"$f":"IFERROR(VLOOKUP(D42,STOCK!B:D,3,0),\"\")","v":""}]
[37,null,null,null,null,{"$f":"IFERROR(VLOOKUP(D43,STOCK!B:D,3,0),\"\")","v":""}]
[38,null,null,null,null,{"$f":"IFERROR(VLOOKUP(D44,STOCK!B:D,3,0),\"\")","v":""}]
[39,null,null,null,null,{"$f":"IFERROR(VLOOKUP(D45,STOCK!B:D,3,0),\"\")","v":""}]
[40,null,null,null,null,{"$f":"IFERROR(VLOOKUP(D46,STOCK!B:D,3,0),\"\")","v":""}]
[41,null,null,null,null,{"$f":"IFERROR(VLOOKUP(D47,STOCK!B:D,3,0),\"\")","v":""}]
[42,null,null,null,null,{"$f":"IFERROR(VLOOKUP(D48,STOCK!B:D,3,0),\"\")","v":""}]
[43,null,null,null,null,{"$f":"IFERROR(VLOOKUP(D49,STOCK!B:D,3,0),\"\")","v":""}]
[44,null,null,null,null,{"$f":"IFERROR(VLOOKUP(D50,STOCK!B:D,3,0),\"\")","v":""}]
[45,null,null,null,null,{"$f":"IFERROR(VLOOKUP(D51,STOCK!B:D,3,0),\"\")","v":""}]
[46,null,null,null,null,{"$f":"IFERROR(VLOOKUP(D52,STOCK!B:D,3,0),\"\")","v":""}]
[47,null,null,null,null,{"$f":"IFERROR(VLOOKUP(D53,STOCK!B:D,3,0),\"\")","v":""}]
[48,null,null,null,null,{"$f":"IFERROR(VLOOKUP(D54,STOCK!B:D,3,0),\"\")","v":""}]
[49,null,null,null,null,{"$f":"IFERROR(VLOOKUP(D55,STOCK!B:D,3,0),\"\")","v":""}]
[50,null,null,null,null,{"$f":"IFERROR(VLOOKUP(D56,STOCK!B:D,3,0),\"\")","v":""}]

{"sheet":"SORTIE","index":2,"n_rows":56,"n_cols":6,"rows_kept":56,"cut":false,"hidden":false,"merged":[]}
[]
[]
[]
[]
[]
[null,"DATE ","ARTICLE ","QUANTITE","STOCK","NOUVEAU STOCK SORTIE"]
[1]
[2]
[3]
[4]
[5]
[6]
[7]
[8]
[9]
[10]
[11]
[12]
[13]
[14]
[15]
[16]
[17]
[18]
[19]
[20]
[21]
[22]
[23]
[24]
[25]
[26]
[27]
[28]
[29]
[30]
[31]
[32]
[33]
[34]
[35]
[36]
[37]
[38]
[39]
[40]
[41]
[42]
[43]
[44]
[45]
[46]
[47]
[48]
[49]
[50]

{"sheet":"STOCK","index":3,"n_rows":401,"n_cols":11,"rows_kept":401,"cut":false,"hidden":false,"merged":[]}
[]
[]
[]
["inventaire au 18/12/15","ARTICLE","STOCK MINI","STOCK INITIAL","ENTREE ","NOUVEAU STOCK ENTREE","SORTIE","NOUVEAU STOCK SORTIE",null,null,"Liste exhaustive"]
[2.5,"ail surgeles",null,2.5,null,null,null,null,null,null,"ail surgeles"]
[0,"airelles",null,0,null,null,null,null,null,null,"abondance"]
[0,"basilic surgeles",null,0,null,null,null,null,null,null,"abricots"]
[0,"batonnet glace vanille",null,0,null,null,null,null,null,null,"abricots au sirop"]
[0,"batonnet glace chocolat",null,0,null,null,null,null,null,null,"ail frais"]
[0,"beignet de la mer",null,0,null,null,null,null,null,null,"airelles"]
[0,"beignet chocolat",null,0,null,null,null,null,null,null,"ananas"]
[0,"beignet framboise",null,0,null,null,null,null,null,null,"ananas traches entieres"]
[0,"beignet aux pommes",null,0,null,null,null,null,null,null,"ananas tranches brisees"]
[26,"bounty",null,26,null,null,null,null,null,null,"aneth"]
[0,"brochette de dinde",null,0,null,null,null,null,null,null,"artichauts"]
[0,"brocolis",null,0,null,null,null,null,null,null,"asperge"]
[5,"brunoise de legumes",null,5,null,null,null,null,null,null,"aubergine"]
[0,"ciboulette surgeles",null,0,null,null,null,null,null,null,"avocats"]
[0,"dos de cabillaud",null,0,null,null,null,null,null,null,"baie de genievre"]
[0,"cuisse de canette",null,0,null,null,null,null,null,null,"banane"]
[0,"cuisse de poulet",null,0,null,null,null,null,null,null,"basilic frais"]
[0,"carottes surgelees",null,0,null,null,null,null,null,null,"basilic surgeles"]
[0,"cèpes surgels",null,0,null,null,null,null,null,null,"batonnet glace chocolat"]
[0,"choux de bruxelles",null,0,null,null,null,null,null,null,"batonnet glace vanille"]
[0,"chaussons aux pommes",null,0,null,null,null,null,null,null,"beignet aux pommes"]
[10,"champignons surgeles",null,10,null,null,null,null,null,null,"beignet chocolat"]
[0,"choux fleur",null,0,null,null,null,null,null,null,"beignet de la mer"]
[0,"churros de pomme de terre",null,0,null,null,null,null,null,null,"beignet framboise"]
[24,"cone glacés chocolat",null,24,null,null,null,null,null,null,"betteraves en dés"]
[10,"cone glacés fraise",null,10,null,null,null,null,null,null,"beurre micro"]
[1,"cone glacés vanille",null,1,null,null,null,null,null,null,"beurre plaquette"]
[0.62,"cordon bleu ",null,100.62,null,null,null,null,null,null,"bierre"]
[0,"courgette surgeles ",null,0,null,null,null,null,null,null,"bigareau au sirop"]
[0,"crepe au chocolat ",null,0,null,null,null,null,null,null,"bisque de homard"]
[0,"crepe au fromage ",null,0,null,null,null,null,null,null,"blanquette de veau"]
[0,"crevettes decortiquees ",null,0,null,null,null,null,null,null,"blé"]
[0,"crumbel ",null,0,null,null,null,null,null,null,"bleu auvergne"]
[0,"crepe au sucre ",null,0,null,null,null,null,null,null,"bœuf braisé"]
[0,"doughut au chocolat ",null,0,null,null,null,null,null,null,"bombel"]
[12.5,"cuisse de poulet",null,12.5,null,null,null,null,null,null,"bouillon de legumes"]
[0,"crepe au jambon ",null,0,null,null,null,null,null,null,"bouillon de volaille"]
[0,"cube de colin ",null,0,null,null,null,null,null,null,"boulgour"]
[0,"dougnut simpson ",null,0,null,null,null,null,null,null,"bounty"]
[2.5,"echalotte surgeles ",null,2.5,null,null,null,null,null,null,"bourguignon"]
[0,"eclair au chocolat ",null,0,null,null,null,null,null,null,"boursin ail et+fines herbes"]
[0,"eclair vanille ",null,0,null,null,null,null,null,null,"brie "]
[0,"egrene de bœuf ",null,0,null,null,null,null,null,null,"brie portion "]
[12,"encornet surgeles",null,12,null,null,null,null,null,null,"brique de bleu"]
[0,"feuillete au fromage ",null,495,null,null,null,null,null,null,"brochette de dinde"]
[0,"feuillete hot dog ",null,312,null,null,null,null,null,null,"brocolis"]
[5,"filet de hoki ",null,5,null,null,null,null,null,null,"brownies"]
[0,"filet de lieu ",null,0,null,null,null,null,null,null,"brunoise de legumes"]
[0,"filet de lotte",null,0,null,null,null,null,null,null,"buche de chevre"]
[0,"filet de merlu ",null,0,null,null,null,null,null,null,"buche de pilat"]
[0,"flan patissier",null,0,null,null,null,null,null,null,"café"]
[30,"frites",null,30,null,null,null,null,null,null,"caille frais"]
[0,"fruits rouges surgeles ",null,0,null,null,null,null,null,null,"caillettes"]
[0,"gateaux collectifs",null,0,null,null,null,null,null,null,"camembert"]
[15,"haricos verts ",null,15,null,null,null,null,null,null,"camembert portion"]
[0,"haricots beurre surgeles ",null,0,null,null,null,null,null,null,"cantal"]
[0,"jeunes carottes ",null,0,null,null,null,null,null,null,"capres"]
[0,"keftas de volaille ",null,0,null,null,null,null,null,null,"carottes fraiche"]
[20,"legumes couscous surgeles ",null,20,null,null,null,null,null,null,"carottes rapees"]
[70,"mille feuille mini ",null,70,null,null,null,null,null,null,"carottes surgelees"]
[70,"mini croissant ",null,70,null,null,null,null,null,null,"carré frais"]
[0,"pain au chocolat ",null,0,null,null,null,null,null,null,"celeris remoulade"]
[14,"mini pain au raisin ",null,14,null,null,null,null,null,null,"cèpes surgels"]
[6,"moule entiere",null,6,null,null,null,null,null,null,"cerfeuil"]
[0,"navets surgeles ",null,0,null,null,null,null,null,null,"cerise"]
[0,"nems ",null,0,null,null,null,null,null,null,"cerises"]
[0,"nuggets de poulet ",null,0,null,null,null,null,null,null,"cerneau de noix"]
[0,"oignon surgeles ",null,10,null,null,null,null,null,null,"cervelas"]
[0,"pain",null,0,null,null,null,null,null,null,"champignon a la greque"]
[0,"pain kebab",null,0,null,null,null,null,null,null,"champignons entiers"]
[0,"palette a la diable ",null,0,null,null,null,null,null,null,"champignons pied et morceaux"]
[0,"pané de hoki ",null,0,null,null,null,null,null,null,"champignons surgeles"]
[36,"paris brest ",null,36,null,null,null,null,null,null,"chanteneige"]
[8,"pate feuilletées",null,8,null,null,null,null,null,null,"chapelure"]
[0,"pave de sumon ",null,0,null,null,null,null,null,null,"chaussons aux pommes"]
[0,"persil surgeles ",null,0,null,null,null,null,null,null,"chavroux"]
[0,"petits pois carottes surgeles ",null,90,null,null,null,null,null,null,"chipolatas"]
[0,"petits pois surgeles ",null,0,null,null,null,null,null,null,"chips"]
[0,"pilon de poulet",null,0,null,null,null,null,null,null,"chorizzo"]
[0,"poelles de legumes ",null,0,null,null,null,null,null,null,"choucroute"]
[0,"poireaux surgeles ",null,0,null,null,null,null,null,null,"choux blanc ou rouge"]
[10.4,"poissons panés",null,10.4,null,null,null,null,null,null,"choux chinois"]
[7.5,"poivrons lanieres ",null,7.5,null,null,null,null,null,null,"choux de bruxelles"]
[0,"pommes dauphine ",null,0,null,null,null,null,null,null,"choux fleur"]
[15,"pommes de terre campagnardes",null,15,null,null,null,null,null,null,"churros de pomme de terre"]
[0,"pommes duchesses ",null,0,null,null,null,null,null,null,"ciboulette fraiche"]
[0,"pommes noisettes ",null,0,null,null,null,null,null,null,"ciboulette surgeles"]
[35,"pommes rissolees ",null,35,null,null,null,null,null,null,"citron"]
[10,"ratatouille ",null,10,null,null,null,null,null,null,"clementines"]
[0,"salade verte",null,0,null,null,null,null,null,null,"clou de giroffle"]
[0,"salsifis",null,0,null,null,null,null,null,null,"cocktai de fruits au sirop"]
[0,"samoussa",null,0,null,null,null,null,null,null,"coleslaw"]
[0,"saumonette",null,0,null,null,null,null,null,null,"compote de peche"]
[0,"sauté de dinde",null,0,null,null,null,null,null,null,"compote de poire"]
[10,"snickers",null,10,null,null,null,null,null,null,"compote de pomme"]
[13.44,"steack hachés",null,13.44,null,null,null,null,null,null,"concentre de tomate bte 4/4"]
[3.24,"steack hachés de porc",null,3.24,null,null,null,null,null,null,"concentre de tomate bte 5/1"]
[0,"tarte aux pomme ",null,0,null,null,null,null,null,null,"concombre"]
[0,"terrine de legumes ",null,0,null,null,null,null,null,null,"cone glacés chocolat"]
[0,"terrines de poisson ",null,0,null,null,null,null,null,null,"cone glacés fraise"]
[0,"tiramisu",null,0,null,null,null,null,null,null,"cone glacés vanille"]
[null,"FRIGO 1",null,null,null,null,null,null,null,null,"conté portion "]
[0,"saute agneau",null,0,null,null,null,null,null,null,"coquillettes"]
[0,"blanquette de veau",null,0,null,null,null,null,null,null,"cordon bleu "]
[0,"bœuf braisé",null,0,null,null,null,null,null,null,"coriandre"]
[0,"bourguignon",null,0,null,null,null,null,null,null,"cornichon "]
[0,"caillettes",null,0,null,null,null,null,null,null,"cornichon rondelles "]
[0,"cervelas",null,0,null,null,null,null,null,null,"cote de blettes "]
[0,"chipolatas",null,0,null,null,null,null,null,null,"coulis de tomate "]
[0,"chorizzo",null,0,null,null,null,null,null,null,"courgette fraiche "]
[0,"choucroute",null,0,null,null,null,null,null,null,"courgette surgeles "]
[0,"diot de savoie",null,0,null,null,null,null,null,null,"creme brulé"]
[0,"filet de hareng",null,0,null,null,null,null,null,null,"creme de marron "]
[0,"foie gras",null,0,null,null,null,null,null,null,"creme dessert caramel"]
[0,"champignon a la greque",null,0,null,null,null,null,null,null,"creme dessert chocolat"]
[0,"merguez",null,0,null,null,null,null,null,null,"creme dessert pistache"]
[0,"coleslaw",null,0,null,null,null,null,null,null,"creme dessert vanille"]
[0,"gnocchi",null,0,null,null,null,null,null,null,"creme fraiche "]
[31.22,"jambon cuits ",null,31.22,null,null,null,null,null,null,"crepe au chocolat "]
[0,"jambonnettes",null,0,null,null,null,null,null,null,"crepe au fromage "]
[0,"jambon de parme ",null,0,null,null,null,null,null,null,"crepe au jambon "]
[0,"kit choucroute",null,0,null,null,null,null,null,null,"crepe au sucre "]
[0,"lardon",null,0,null,null,null,null,null,null,"crevettes decortiquees "]
[0,"levure",null,0,null,null,null,null,null,null,"crouton a l'ail"]
[0,"magret de canard",null,0,null,null,null,null,null,null,"crozet "]
[0,"mayonnaise seaux",null,2,null,null,null,null,null,null,"crozet au sarasin "]
[0,"mousse de foie",null,0,null,null,null,null,null,null,"crumbel "]
[null,"œuf liquide",null,0,null,null,null,null,null,null,"cube de colin "]
[null,"œuf durs ",null,0,null,null,null,null,null,null,"cuisse de canette"]
[0,"paté croute",null,0,null,null,null,null,null,null,"cuisse de poulet"]
[0,"paté de campagne ",null,0,null,null,null,null,null,null,"cumin "]
[0,"pommes de terres en des ",null,0,null,null,null,null,null,null,"curry"]
[0,"quenelles fraiches",null,0,null,null,null,null,null,null,"des de bleu "]
[0,"roti de porc",null,0,null,null,null,null,null,null,"des de feta "]
[0,"saucisson a l ail ",null,0,null,null,null,null,null,null,"des de fourme d ambert "]
[0,"salamis",null,0,null,null,null,null,null,null,"des de gruyere "]
[0,"rosette ",null,0,null,null,null,null,null,null,"des de jambon "]
[0,"steack de porc",null,0,null,null,null,null,null,null,"des de mimolette"]
[0,"sauté de porc",null,0,null,null,null,null,null,null,"des de roquefort"]
[0,"roti de bœuf ",null,0,null,null,null,null,null,null,"diot de savoie"]
[0,"saumon fumé",null,0,null,null,null,null,null,null,"dos de cabillaud"]
[0,"surimi bloc ",null,0,null,null,null,null,null,null,"doughut au chocolat "]
[0,"surimi miettes",null,0,null,null,null,null,null,null,"dougnut simpson "]
[0,"saucisse de toulouse",null,0,null,null,null,null,null,null,"eau "]
[null,"FRIGO 2",null,null,null,null,null,null,null,null,"echalotte surgeles "]
[0,"abondance",null,0,null,null,null,null,null,null,"eclair au chocolat "]
[0,"beurre micro",null,0,null,null,null,null,null,null,"eclair vanille "]
[16.25,"beurre plaquette",null,16.25,null,null,null,null,null,null,"egrene de bœuf "]
[0,"bleu auvergne",null,0,null,null,null,null,null,null,"emmental portion "]
[480,"bombel",null,480,null,null,null,null,null,null,"encornet surgeles"]
[0,"boursin ail et+fines herbes",null,0,null,null,null,null,null,null,"endive "]
[0,"brique de bleu",null,0,null,null,null,null,null,null,"estragon"]
[0,"brie ",null,0,null,null,null,null,null,null,"farfalle"]
[0,"brie portion ",null,0,null,null,null,null,null,null,"farine "]
[0,"buche de pilat",null,0,null,null,null,null,null,null,"feuillete au fromage "]
[0,"buche de chevre",null,0,null,null,null,null,null,null,"feuillete hot dog "]
[0,"caille frais",null,0,null,null,null,null,null,null,"filet d anchois "]
[124,"camembert portion",null,124,null,null,null,null,null,null,"filet de hareng"]
[0,"des de feta ",null,0,null,null,null,null,null,null,"filet de hoki "]
[0,"camembert",null,0,null,null,null,null,null,null,"filet de lieu "]
[0,"cantal",null,0,null,null,null,null,null,null,"filet de lotte"]
[0,"carré frais",null,0,null,null,null,null,null,null,"filet de merlu "]
[0,"chanteneige",null,0,null,null,null,null,null,null,"flageolet"]
[0,"chavroux",null,0,null,null,null,null,null,null,"flan"]
[0,"conté portion ",null,0,null,null,null,null,null,null,"flan patissier"]
[0,"creme brulé",null,0,null,null,null,null,null,null,"foie gras"]
[5,"creme fraiche ",null,5,null,null,null,null,null,null,"fond artichauts"]
[0,"des de fourme d ambert ",null,0,null,null,null,null,null,null,"fond brun lié"]
[0,"des de bleu ",null,0,null,null,null,null,null,null,"fraise s"]
[0,"des de gruyere ",null,0,null,null,null,null,null,null,"frites"]
[0,"des de jambon ",null,0,null,null,null,null,null,null,"fromage blanc"]
[0,"des de mimolette",null,0,null,null,null,null,null,null,"fromage hamburger"]
[0,"des de roquefort",null,0,null,null,null,null,null,null,"fruits rouges surgeles "]
[0,"emmental portion ",null,0,null,null,null,null,null,null,"fumet de poisson "]
[50,"flan",null,50,null,null,null,null,null,null,"garniture pizza"]
[0,"fromage blanc",null,0,null,null,null,null,null,null,"garniture taboulé"]
[0,"fromage hamburger",null,0,null,null,null,null,null,null,"gateau de riz "]
[0,"gateau de riz ",null,0,null,null,null,null,null,null,"gateau de semoule "]
[0,"gateau de semoule ",null,0,null,null,null,null,null,null,"gateaux collectifs"]
[0,"gruyere rapé ",null,0,null,null,null,null,null,null,"gnocchi"]
[0,"gruyere bloc ",null,0,null,null,null,null,null,null,"gruyere bloc "]
[0,"iles flottantes",null,0,null,null,null,null,null,null,"gruyere rapé "]
[0,"kiri",null,0,null,null,null,null,null,null,"haricos verts "]
[0,"lait",6,0,null,null,null,null,null,null,"haricots beurre bte "]
[0,"liegeois vanille ",null,0,null,null,null,null,null,null,"haricots beurre surgeles "]
[0,"liegeois café",null,0,null,null,null,null,null,null,"haricots rouge boites"]
[0,"liegeois chocolat",null,0,null,null,null,null,null,null,"haricots verts boites"]
[144,"mini cabrette ",null,144,null,null,null,null,null,null,"harissa "]
[0,"mini roitelet ",null,0,null,null,null,null,null,null,"herbe de provence"]
[0,"mousse au chocolat",null,0,null,null,null,null,null,null,"huile d olive "]
[0,"mini babybel ",null,0,null,null,null,null,null,null,"huile de colza "]
[0,"mozzarella bloc",null,0,null,null,null,null,null,null,"huile de friture "]
[2.5,"mozzarella des ",null,2.5,null,null,null,null,null,null,"huile de tournesol "]
[0,"munster",null,0,null,null,null,null,null,null,"iles flottantes"]
[0,"œuf liquide ",null,0,null,null,null,null,null,null,"jambon cuits "]
[0,"œuf durs ",null,0,null,null,null,null,null,null,"jambon de parme "]
[0,"pavé affinois ",null,0,null,null,null,null,null,null,"jambonnettes"]
[63,"petits louis fromage",null,63,null,null,null,null,null,null,"jet bar ketchup "]
[0,"petits suisses nature ",null,0,null,null,null,null,null,null,"jet bar moutarde "]
[0,"petits suisses aux fruits",null,0,null,null,null,null,null,null,"jeunes carottes "]
[0,"port salut",null,0,null,null,null,null,null,null,"keftas de volaille "]
[0,"reblochon ",null,0,null,null,null,null,null,null,"ketchup doses "]
[0,"roquefort portion ",null,0,null,null,null,null,null,null,"kiri"]
[0,"samos",null,0,null,null,null,null,null,null,"kit choucroute"]
[423,"st moret ",null,423,null,null,null,null,null,null,"kiwi"]
[0,"st agur ",null,0,null,null,null,null,null,null,"lait"]
[0,"st marcelin ",null,0,null,null,null,null,null,null,"lardon"]
[0,"st paulin a la coupe ",null,0,null,null,null,null,null,null,"laurier feuilles "]
[0,"st paulin portion ",null,0,null,null,null,null,null,null,"legumes couscous boite"]
[0,"tartare",null,0,null,null,null,null,null,null,"legumes couscous surgeles "]
[0,"tome noire portion ",null,0,null,null,null,null,null,null,"lentilles boites "]
[0,"tome blanche ",null,0,null,null,null,null,null,null,"lentilles seches "]
[0,"tome blanche portion ",null,0,null,null,null,null,null,null,"levure"]
[560,"vache qui rit",null,560,null,null,null,null,null,null,"liegeois café"]
[0,"yaourt aroatisé ",null,0,null,null,null,null,null,null,"liegeois chocolat"]
[0,"yaourt nature ",null,0,null,null,null,null,null,null,"liegeois vanille "]
[null,"FRIGO 3",null,null,null,null,null,null,null,null,"lychee au sirop "]
[0,"abricots",null,0,null,null,null,null,null,null,"macaroni"]
[2,"ail frais",null,2,null,null,null,null,null,null,"macédoine de legumes "]
[0,"ananas",null,0,null,null,null,null,null,null,"mache"]
[0,"aneth",null,0,null,null,null,null,null,null,"magret de canard"]
[0,"artichauts",null,0,null,null,null,null,null,null,"mais"]
[0,"aubergine",null,0,null,null,null,null,null,null,"maizena"]
[0,"avocats",null,0,null,null,null,null,null,null,"maquereaux au vin blanc "]
[0,"banane",null,0,null,null,null,null,null,null,"mayonnaise doses"]
[0,"basilic frais",null,0,null,null,null,null,null,null,"mayonnaise jet bar "]
[0,"carottes fraiche",null,0,null,null,null,null,null,null,"mayonnaise seaux"]
[0,"carottes rapees",null,0,null,null,null,null,null,null,"melon "]
[0,"cerfeuil",null,0,null,null,null,null,null,null,"menthe"]
[0,"cerise",null,0,null,null,null,null,null,null,"merguez"]
[0,"cerises",null,0,null,null,null,null,null,null,"miel "]
[0,"choux blanc ou rouge",null,0,null,null,null,null,null,null,"mille feuille mini "]
[0,"choux chinois",null,0,null,null,null,null,null,null,"mini babybel "]
[0,"ciboulette fraiche",null,0,null,null,null,null,null,null,"mini cabrette "]
[3,"citron",null,3,null,null,null,null,null,null,"mini croissant "]
[0,"clementines",null,0,null,null,null,null,null,null,"mini pain au raisin "]
[0,"concombre",null,0,null,null,null,null,null,null,"mini roitelet "]
[0,"courgette fraiche ",null,0,null,null,null,null,null,null,"moule entiere"]
[0,"endive ",null,0,null,null,null,null,null,null,"mousse au chocolat"]
[0,"estragon",null,0,null,null,null,null,null,null,"mousse de foie"]
[0,"fraise s",null,0,null,null,null,null,null,null,"moutarde seaux"]
[0,"kiwi",null,0,null,null,null,null,null,null,"mozzarella bloc"]
[0,"mache",null,0,null,null,null,null,null,null,"mozzarella des "]
[0,"melon ",null,0,null,null,null,null,null,null,"munster"]
[0,"menthe",null,0,null,null,null,null,null,null,"muscade moulu"]
[0,"orange ",null,0,null,null,null,null,null,null,"nappage chocolat "]
[0,"pamplemousse",null,0,null,null,null,null,null,null,"nappage fruits rouge"]
[0,"pasteque",null,0,null,null,null,null,null,null,"navets surgeles "]
[0,"peche",null,0,null,null,null,null,null,null,"nems "]
[0,"persil botte",null,0,null,null,null,null,null,null,"nuggets de poulet "]
[0,"poire",null,0,null,null,null,null,null,null,"œuf durs "]
[0,"poireaux ",null,0,null,null,null,null,null,null,"œuf liquide"]
[0,"poivrons frais ",null,0,null,null,null,null,null,null,"œuf liquide "]
[20,"pomme ",null,20,null,null,null,null,null,null,"oignon /echalotte"]
[0,"pomme de terre",null,0,null,null,null,null,null,null,"oignon surgeles "]
[0,"prunes ",null,0,null,null,null,null,null,null,"olives noire denoyautées"]
[0,"radis sous vide ",null,0,null,null,null,null,null,null,"olives noires rondelles "]
[0,"raisin ",null,0,null,null,null,null,null,null,"olives verte denoyautées"]
[0,"salade verte",null,0,null,null,null,null,null,null,"orange "]
[0,"vin blanc vrac ",null,0,null,null,null,null,null,null,"pain"]
[3,"vin rouge vrac ",null,3,null,null,null,null,null,null,"pain "]
[null,"EPICERIE",null,null,null,null,null,null,null,null,"pain au chocolat "]
[3,"abricots au sirop",null,3,null,null,null,null,null,null,"pain de mie "]
[0,"ananas tranches brisees",null,0,null,null,null,null,null,null,"pain d'épice "]
[0,"ananas traches entieres",null,0,null,null,null,null,null,null,"pain hamburger"]
[12,"asperge",null,12,null,null,null,null,null,null,"pain kebab"]
[1,"baie de genievre",null,1,null,null,null,null,null,null,"palette a la diable "]
[27,"betteraves en dés",null,27,null,null,null,null,null,null,"pamplemousse"]
[0,"bierre",null,0,null,null,null,null,null,null,"pané de hoki "]
[4,"bigareau au sirop",null,4,null,null,null,null,null,null,"paprika"]
[6,"bisque de homard",null,6,null,null,null,null,null,null,"paris brest "]
[35,"blé",null,35,null,null,null,null,null,null,"pasteque"]
[11,"bouillon de legumes",null,11,null,null,null,null,null,null,"pate a lasagne "]
[7,"bouillon de volaille",null,7,null,null,null,null,null,null,"pate a tartiner"]
[15,"boulgour",null,15,null,null,null,null,null,null,"paté croute"]
[0,"brownies",null,0,null,null,null,null,null,null,"paté de campagne "]
[3,"café",null,3,null,null,null,null,null,null,"pate feuilletées"]
[9,"capres",null,9,null,null,null,null,null,null,"pavé affinois "]
[26,"celeris remoulade",null,26,null,null,null,null,null,null,"pave de sumon "]
[2,"cerneau de noix",null,2,null,null,null,null,null,null,"peche"]
[1,"champignons pied et morceaux",null,1,null,null,null,null,null,null,"peche au sirop "]
[1,"chapelure",null,1,null,null,null,null,null,null,"persil botte"]
[0,"champignons entiers",null,0,null,null,null,null,null,null,"persil surgeles "]
[0,"chips",null,0,null,null,null,null,null,null,"petits louis fromage"]
[1,"clou de giroffle",null,1,null,null,null,null,null,null,"petits pois boites "]
[20,"coquillettes",null,20,null,null,null,null,null,null,"petits pois carottes  boites "]
[0,"cote de blettes ",null,0,null,null,null,null,null,null,"petits pois carottes surgeles "]
[0,"coriandre",null,0,null,null,null,null,null,null,"petits pois surgeles "]
[9,"coulis de tomate ",null,9,null,null,null,null,null,null,"petits suisses aux fruits"]
[27,"cocktai de fruits au sirop",null,27,null,null,null,null,null,null,"petits suisses nature "]
[3,"compote de peche",null,3,null,null,null,null,null,null,"pilon de poulet"]
[15,"compote de pomme",null,15,null,null,null,null,null,null,"pique nique"]
[14,"compote de poire",null,14,null,null,null,null,null,null,"poelles de legumes "]
[11,"concentre de tomate bte 4/4",null,11,null,null,null,null,null,null,"poire"]
[9,"concentre de tomate bte 5/1",null,9,null,null,null,null,null,null,"poireaux "]
[1,"coriandre",null,1,null,null,null,null,null,null,"poireaux surgeles "]
[4,"cornichon ",null,4,null,null,null,null,null,null,"pois chiches "]
[4,"cornichon rondelles ",null,4,null,null,null,null,null,null,"poissons panés"]
[8,"creme de marron ",null,8,null,null,null,null,null,null,"poivre "]
[7,"creme dessert caramel",null,7,null,null,null,null,null,null,"poivrons frais "]
[13,"creme dessert chocolat",null,13,null,null,null,null,null,null,"poivrons lanieres "]
[2,"creme dessert pistache",null,2,null,null,null,null,null,null,"polenta"]
[19,"creme dessert vanille",null,19,null,null,null,null,null,null,"pomme "]
[11,"crouton a l'ail",null,11,null,null,null,null,null,null,"pomme de terre"]
[80,"crozet ",null,80,null,null,null,null,null,null,"pommes dauphine "]
[0,"crozet au sarasin ",null,0,null,null,null,null,null,null,"pommes de terre campagnardes"]
[3,"cumin ",null,3,null,null,null,null,null,null,"pommes de terres en des "]
[3,"curry",null,3,null,null,null,null,null,null,"pommes duchesses "]
[38,"eau ",null,38,null,null,null,null,null,null,"pommes noisettes "]
[0,"farfalle",null,0,null,null,null,null,null,null,"pommes rissolees "]
[20,"farine ",null,20,null,null,null,null,null,null,"port salut"]
[2,"filet d anchois ",null,2,null,null,null,null,null,null,"pousse de soja "]
[3,"fond artichauts",null,3,null,null,null,null,null,null,"prunes "]
[11,"fond brun lié",null,11,null,null,null,null,null,null,"pulco"]
[46,"flageolet",null,46,null,null,null,null,null,null,"quenelles boites "]
[5,"fumet de poisson ",null,5,null,null,null,null,null,null,"quenelles fraiches"]
[5,"garniture pizza",null,5,null,null,null,null,null,null,"radis sous vide "]
[11,"garniture taboulé",null,11,null,null,null,null,null,null,"raisin "]
[5,"haricots beurre bte ",null,5,null,null,null,null,null,null,"raisin sec"]
[7,"haricots rouge boites",null,7,null,null,null,null,null,null,"ratatouille "]
[4,"haricots verts boites",null,4,null,null,null,null,null,null,"raviolis boites"]
[0,"harissa ",null,0,null,null,null,null,null,null,"raz el hanout"]
[1,"herbe de provence",null,1,null,null,null,null,null,null,"reblochon "]
[45,"huile de colza ",null,45,null,null,null,null,null,null,"riz"]
[30,"huile de tournesol ",null,30,null,null,null,null,null,null,"riz d or "]
[180,"huile de friture ",null,180,null,null,null,null,null,null,"roquefort portion "]
[46,"huile d olive ",null,46,null,null,null,null,null,null,"rosette "]
[2,"jet bar ketchup ",null,2,null,null,null,null,null,null,"roti de bœuf "]
[0,"jet bar moutarde ",null,0,null,null,null,null,null,null,"roti de porc"]
[154,"ketchup doses ",null,154,null,null,null,null,null,null,"safran "]
[1,"laurier feuilles ",null,1,null,null,null,null,null,null,"salade verte"]
[9,"legumes couscous boite",null,9,null,null,null,null,null,null,"salamis"]
[7,"lentilles boites ",null,7,null,null,null,null,null,null,"salsifis"]
[20,"lentilles seches ",null,20,null,null,null,null,null,null,"salsifis boites"]
[1,"lychee au sirop ",null,1,null,null,null,null,null,null,"samos"]
[15,"macaroni",null,15,null,null,null,null,null,null,"samoussa"]
[0,"macédoine de legumes ",null,0,null,null,null,null,null,null,"sardine"]
[9,"mais",null,9,null,null,null,null,null,null,"sauce au beurre blanc "]
[5,"maizena",null,5,null,null,null,null,null,null,"sauce aux poivre vert "]
[7,"maquereaux au vin blanc ",null,7,null,null,null,null,null,null,"saucisse de toulouse"]
[635,"mayonnaise doses",null,635,null,null,null,null,null,null,"saucisse strasbourg boites"]
[4,"mayonnaise jet bar ",null,4,null,null,null,null,null,null,"saucisson a l ail "]
[0,"miel ",null,0,null,null,null,null,null,null,"saumon fumé"]
[2,"moutarde seaux",null,2,null,null,null,null,null,null,"saumonette"]
[1,"muscade moulu",null,1,null,null,null,null,null,null,"saute agneau"]
[0,"nappage chocolat ",null,0,null,null,null,null,null,null,"sauté de dinde"]
[0,"nappage fruits rouge",null,0,null,null,null,null,null,null,"sauté de porc"]
[4,"olives noire denoyautées",null,4,null,null,null,null,null,null,"segment mandarine "]
[3,"olives noires rondelles ",null,3,null,null,null,null,null,null,"segment pamplemousse "]
[9,"olives verte denoyautées",null,9,null,null,null,null,null,null,"sel fin "]
[0,"oignon /echalotte",null,0,null,null,null,null,null,null,"semoule couscous "]
[0,"pain ",null,0,null,null,null,null,null,null,"snickers"]
[0,"pain d'épice ",null,0,null,null,null,null,null,null,"spaghetti "]
[0,"pain hamburger",null,0,null,null,null,null,null,null,"st agur "]
[0,"pain de mie ",null,0,null,null,null,null,null,null,"st marcelin "]
[1,"paprika",null,1,null,null,null,null,null,null,"st moret "]
[1,"pate a lasagne ",null,1,null,null,null,null,null,null,"st paulin a la coupe "]
[30,"pate a tartiner",null,30,null,null,null,null,null,null,"st paulin portion "]
[7,"peche au sirop ",null,7,null,null,null,null,null,null,"steack de porc"]
[1,"petits pois carottes  boites ",null,1,null,null,null,null,null,null,"steack hachés"]
[7,"petits pois boites ",null,7,null,null,null,null,null,null,"steack hachés de porc"]
[8,"pique nique",null,8,null,null,null,null,null,null,"sucre glace "]
[9,"pois chiches ",null,9,null,null,null,null,null,null,"sucre sachet "]
[1,"poivre ",null,1,null,null,null,null,null,null,"sucre semoule "]
[37,"polenta",null,37,null,null,null,null,null,null,"surimi bloc "]
[12,"pousse de soja ",null,12,null,null,null,null,null,null,"surimi miettes"]
[5,"pulco",null,5,null,null,null,null,null,null,"tartare"]
[1,"quenelles boites ",null,1,null,null,null,null,null,null,"tarte aux pomme "]
[0,"raisin sec",null,0,null,null,null,null,null,null,"terrine de legumes "]
[50,"raviolis boites",null,50,null,null,null,null,null,null,"terrines de poisson "]
[0,null,null,0,null,null,null,null,null,null,"thom "]
[0,"raz el hanout",null,0,null,null,null,null,null,null,"thym "]
[0,"garniture taboulé",null,0,null,null,null,null,null,null,"tiramisu"]
[35,"riz",null,35,null,null,null,null,null,null,"toast"]
[0,"riz d or ",null,0,null,null,null,null,null,null,"tomate pelées et concassée"]
[2,"safran ",null,2,null,null,null,null,null,null,"tome blanche "]
[1,"salsifis boites",null,1,null,null,null,null,null,null,"tome blanche portion "]
[19,"sardine",null,19,null,null,null,null,null,null,"tome noire portion "]
[1,"sauce au beurre blanc ",null,1,null,null,null,null,null,null,"torsades"]
[2,"sauce aux poivre vert ",null,2,null,null,null,null,null,null,"vache qui rit"]
[2,"saucisse strasbourg boites",null,2,null,null,null,null,null,null,"vin blanc vrac "]
[5,"segment mandarine ",null,5,null,null,null,null,null,null,"vin bouteille "]
[11,"segment pamplemousse ",null,11,null,null,null,null,null,null,"vin rouge vrac "]
[30,"sel fin ",null,30,null,null,null,null,null,null,"vinaigre"]
[40,"semoule couscous ",null,40,null,null,null,null,null,null,"vinaigre balsamique "]
[7,"spaghetti ",null,7,null,null,null,null,null,null,"yaourt aroatisé "]
[0,"sucre glace ",null,0,null,null,null,null,null,null,"yaourt nature "]
[20,"sucre sachet ",null,20]
[38,"sucre semoule ",null,38]
[5,"thom ",null,5]
[0,"thym ",null,0]
[0,"toast",null,0]
[19,"tomate pelées et concassée",null,19]
[0,"torsades",null,0]
[5,"vin bouteille ",null,5]
[14,"vinaigre",null,14]
[4,"vinaigre balsamique ",null,4]

{"sheet":"Bilan marché 2016","index":4,"n_rows":497,"n_cols":7,"rows_kept":497,"cut":false,"hidden":false,"merged":[[1,3,1,6],[0,0,0,6]]}
["Bilan marché 2016"]
[null,"fournisseur marché 2016","quantité soumissionné","GENERAL"]
["SURGELES",null,null,{"$f":"SUMIF('2'!$D$11,A3:A3,'2'!$E$11)","v":0},0,{"$f":"D3+E3","v":0},0]
["ail surgeles",null,null,{"$f":"SUMIF('2'!$D$11,#REF!,'2'!$E$11)","v":0},0,{"$f":"D4+E4","v":0},0]
["airelles",null,null,{"$f":"SUMIF('2'!$D$11,#REF!,'2'!$E$11)","v":0},30,30,0]
["basilic surgeles",null,null,{"$f":"SUMIF('2'!$D$11,#REF!,'2'!$E$11)","v":0},0,0,0]
["batonnet de glaces autres parfum","BRAIKE France",400,{"$f":"SUMIF('2'!$D$11,#REF!,'2'!$E$11)","v":0}]
["batonnet de la mer","BRAIKE France",150,{"$f":"SUMIF('2'!$D$11,#REF!,'2'!$E$11)","v":0},0,0,0]
["batonnet glace chocolat","BRAIKE France",400,{"$f":"SUMIF('2'!$D$11,#REF!,'2'!$E$11)","v":0},0,0,0]
["batonnet glace vanille","BRAIKE France",400,{"$f":"SUMIF('2'!$D$11,#REF!,'2'!$E$11)","v":0}]
["beignet aux fruits rouges","BRAIKE France",10,{"$f":"SUMIF('2'!$D$11,#REF!,'2'!$E$11)","v":0},0,0,0]
["beignet aux pommes","BRAIKE France",20,{"$f":"SUMIF('2'!$D$11,#REF!,'2'!$E$11)","v":0},0,0,0]
["beignet chocolat","BRAIKE France",50,{"$f":"SUMIF('2'!$D$11,#REF!,'2'!$E$11)","v":0},0,0,0]
["beignet de la mer",null,null,{"$f":"SUMIF('2'!$D$11,#REF!,'2'!$E$11)","v":0},0,0,0]
["boulette de bœuf","GEL 43",90,{"$f":"SUMIF('2'!$D$11,#REF!,'2'!$E$11)","v":0}]
["bounty","BRAIKE France",300,{"$f":"SUMIF('2'!$D$11,#REF!,'2'!$E$11)","v":0},0,0,0]
["brochette de dinde","GEL 43",140,{"$f":"SUMIF('2'!$D$11,#REF!,'2'!$E$11)","v":0},0,0,0]
["brochette de dinde a l orientale","GEL 43",140,{"$f":"SUMIF('2'!$D$11,#REF!,'2'!$E$11)","v":0}]
["brocolis",null,null,{"$f":"SUMIF('2'!$D$11,#REF!,'2'!$E$11)","v":0},0,0,0]
["browies surgeles","BRAIKE France",120,{"$f":"SUMIF('2'!$D$11,#REF!,'2'!$E$11)","v":0}]
["brunoise de legumes",null,null,{"$f":"SUMIF('2'!$D$11,#REF!,'2'!$E$11)","v":0},0,0,0]
["cafe liegeois","BRAIKE France",12,{"$f":"SUMIF('2'!$D$11,#REF!,'2'!$E$11)","v":0},0,0,0]
["carottes surgelees",null,null,{"$f":"SUMIF('2'!$D$11,#REF!,'2'!$E$11)","v":0},0,0,0]
["cèpes surgels",null,null,{"$f":"SUMIF('2'!$D$11,#REF!,'2'!$E$11)","v":0}]
["cervelas lard fromage","GEL 43",90,{"$f":"SUMIF('2'!$D$11,#REF!,'2'!$E$11)","v":0}]
["champignon forestiers","POMONA PASSION FRAIS",30,{"$f":"SUMIF('2'!$D$11,#REF!,'2'!$E$11)","v":0}]
["champignon miniature","POMONA PASSION FRAIS",70,{"$f":"SUMIF('2'!$D$11,#REF!,'2'!$E$11)","v":0},0,0,0]
["champignons surgeles (paris)","POMONA PASSION FRAIS",50,{"$f":"SUMIF('2'!$D$11,#REF!,'2'!$E$11)","v":0},0,0,0]
["chaussons aux pommes","BRAIKE France",65,{"$f":"SUMIF('2'!$D$11,#REF!,'2'!$E$11)","v":0}]
["chocolas liegeois","BRAIKE France",50,{"$f":"SUMIF('2'!$D$11,#REF!,'2'!$E$11)","v":0},0,0,0]
["choux de bruxelles",null,null,{"$f":"SUMIF('2'!$D$11,#REF!,'2'!$E$11)","v":0},0,0,0]
["choux fleur",null,null,{"$f":"SUMIF('2'!$D$11,#REF!,'2'!$E$11)","v":0}]
["churros de pomme de terre",null,null,{"$f":"SUMIF('2'!$D$11,#REF!,'2'!$E$11)","v":0},0,0,0]
["ciboulette surgeles",null,null,{"$f":"SUMIF('2'!$D$11,#REF!,'2'!$E$11)","v":0},0,0,0]
["cocktail de fruits de mer","POMONA PASSION FRAIS",null,{"$f":"SUMIF('2'!$D$11,#REF!,'2'!$E$11)","v":0},0,0,0]
["cone assorties","BRAIKE France",100,{"$f":"SUMIF('2'!$D$11,#REF!,'2'!$E$11)","v":0}]
["cone glacés chocolat","BRAIKE France",100,{"$f":"SUMIF('2'!$D$11,#REF!,'2'!$E$11)","v":0}]
["cone glacés fraise","BRAIKE France",100,{"$f":"SUMIF('2'!$D$11,#REF!,'2'!$E$11)","v":0},0,0,0]
["cone glacés vanille","BRAIKE France",100,{"$f":"SUMIF('2'!$D$11,#REF!,'2'!$E$11)","v":0},0,0,0]
["cookies","BRAIKE France",40,{"$f":"SUMIF('2'!$D$11,#REF!,'2'!$E$11)","v":0}]
["coquelet","GEL 43",90,{"$f":"SUMIF('2'!$D$11,#REF!,'2'!$E$11)","v":0},0,0,0]
["cordon bleu ","BRAIKE France",500,{"$f":"SUMIF('2'!$D$11,#REF!,'2'!$E$11)","v":0},0,0,0]
["courgette surgeles ","POMONA PASSION FRAIS",800,{"$f":"SUMIF('2'!$D$11,#REF!,'2'!$E$11)","v":0},0,0,0]
["crepe au chocolat ","BRAIKE France",40,{"$f":"SUMIF('2'!$D$11,#REF!,'2'!$E$11)","v":0}]
["crepe au fromage 150gr","BRAIKE France",200,{"$f":"SUMIF('2'!$D$11,#REF!,'2'!$E$11)","v":0},0,0,0]
["crepe au jambon 150gr","BRAIKE France",100,{"$f":"SUMIF('2'!$D$11,#REF!,'2'!$E$11)","v":0}]
["crepe au sucre ",null,null,{"$f":"SUMIF('2'!$D$11,#REF!,'2'!$E$11)","v":0},0,0,0]
["crevettes decortiquees ","POMONA PASSION FRAIS",50,{"$f":"SUMIF('2'!$D$11,#REF!,'2'!$E$11)","v":0},0,0,0]
["crevettes entieres","POMONA PASSION FRAIS",50,{"$f":"SUMIF('2'!$D$11,#REF!,'2'!$E$11)","v":0},0,0,0]
["croisillon ''Dubarry\"\"","BRAIKE France",60,{"$f":"SUMIF('2'!$D$11,#REF!,'2'!$E$11)","v":0},0,0,0]
["croisillon emmental","BRAIKE France",60,{"$f":"SUMIF('2'!$D$11,#REF!,'2'!$E$11)","v":0}]
["crumbel ",null,null,{"$f":"SUMIF('2'!$D$11,#REF!,'2'!$E$11)","v":0},0,0,0]
["cube de colin ","POMONA PASSION FRAIS",120,{"$f":"SUMIF('2'!$D$11,#REF!,'2'!$E$11)","v":0},0,0,0]
["cuisse de canette","GEL 43",150,{"$f":"SUMIF('2'!$D$11,#REF!,'2'!$E$11)","v":0}]
["cuisse de lapin","GEL 43",100,{"$f":"SUMIF('2'!$D$11,#REF!,'2'!$E$11)","v":0},0,0,0]
["cuisse de pintade","GEL 43",150,{"$f":"SUMIF('2'!$D$11,#REF!,'2'!$E$11)","v":0}]
["cuisse de poulet","GEL 43",1000,{"$f":"SUMIF('2'!$D$11,#REF!,'2'!$E$11)","v":0},0,0,0]
["cuisse de poulet","GEL 43",1000,{"$f":"SUMIF('2'!$D$11,#REF!,'2'!$E$11)","v":0},0,0,0]
["decoupe de cuisses de coq","GEL 43",150,{"$f":"SUMIF('2'!$D$11,#REF!,'2'!$E$11)","v":0}]
["dos de cabillaud",null,null,{"$f":"SUMIF('2'!$D$11,#REF!,'2'!$E$11)","v":0}]
["dos de colin ","POMONA PASSION FRAIS",400,{"$f":"SUMIF('2'!$D$11,#REF!,'2'!$E$11)","v":0},0,0,0]
["doughut au chocolat ","BRAIKE France",80,{"$f":"SUMIF('2'!$D$11,#REF!,'2'!$E$11)","v":0}]
["doughut au sucre","BRAIKE France",80,{"$f":"SUMIF('2'!$D$11,#REF!,'2'!$E$11)","v":0}]
["dougnut simpson ",null,null,{"$f":"SUMIF('2'!$D$11,#REF!,'2'!$E$11)","v":0},0,0,0]
["echalotte surgeles ",null,null,{"$f":"SUMIF('2'!$D$11,#REF!,'2'!$E$11)","v":0},0,0,0]
["eclair au chocolat ","BRAIKE France",100,{"$f":"SUMIF('2'!$D$11,#REF!,'2'!$E$11)","v":0}]
["éclair café","BRAIKE France",20,{"$f":"SUMIF('2'!$D$11,#REF!,'2'!$E$11)","v":0},0,0,0]
["eclair vanille ","BRAIKE France",40,{"$f":"SUMIF('2'!$D$11,#REF!,'2'!$E$11)","v":0},0,0,0]
["egrene de bœuf ","GEL 43",300,{"$f":"SUMIF('2'!$D$11,#REF!,'2'!$E$11)","v":0},0,0,0]
["encornet surgeles","POMONA PASSION FRAIS",350,{"$f":"SUMIF('2'!$D$11,#REF!,'2'!$E$11)","v":0},0,0,0]
["epinards branches","POMONA PASSION FRAIS",90,{"$f":"SUMIF('2'!$D$11,#REF!,'2'!$E$11)","v":0}]
["epinards hachés","POMONA PASSION FRAIS",300,{"$f":"SUMIF('2'!$D$11,#REF!,'2'!$E$11)","v":0}]
["escalope de dinde","GEL 43",600,{"$f":"SUMIF('2'!$D$11,#REF!,'2'!$E$11)","v":0}]
["escalope de dinde panées","BRAIKE France",350,{"$f":"SUMIF('2'!$D$11,#REF!,'2'!$E$11)","v":0}]
["feuillete au fromage ","BRAIKE France",250,{"$f":"SUMIF('2'!$D$11,#REF!,'2'!$E$11)","v":0},0,0,0]
["feuillete hot dog ",null,null,{"$f":"SUMIF('2'!$D$11,#REF!,'2'!$E$11)","v":0},0,0,0]
["filet de hoki ",null,null,{"$f":"SUMIF('2'!$D$11,#REF!,'2'!$E$11)","v":0}]
["filet de lieu ",null,null,{"$f":"SUMIF('2'!$D$11,#REF!,'2'!$E$11)","v":0},0,0,0]
["filet de lotte",null,null,{"$f":"SUMIF('2'!$D$11,#REF!,'2'!$E$11)","v":0},0,0,0]
["filet de merlu ",null,null,{"$f":"SUMIF('2'!$D$11,#REF!,'2'!$E$11)","v":0},0,0,0]
["filet de poisson meuniere","POMONA PASSION FRAIS",300,{"$f":"SUMIF('2'!$D$11,#REF!,'2'!$E$11)","v":0},0,0,0]
["filet de truite","POMONA PASSION FRAIS",100,{"$f":"SUMIF('2'!$D$11,#REF!,'2'!$E$11)","v":0}]
["filet d'églefin","POMONA PASSION FRAIS",300,{"$f":"SUMIF('2'!$D$11,#REF!,'2'!$E$11)","v":0}]
["flan patissier",null,null,{"$f":"SUMIF('2'!$D$11,#REF!,'2'!$E$11)","v":0},0,0,0]
["foie de genisse","GEL 43",90,{"$f":"SUMIF('2'!$D$11,#REF!,'2'!$E$11)","v":0}]
["foret noire","BRAIKE France",70,{"$f":"SUMIF('2'!$D$11,#REF!,'2'!$E$11)","v":0}]
["frites","POMONA PASSION FRAIS",1000,{"$f":"SUMIF('2'!$D$11,#REF!,'2'!$E$11)","v":0},0,0,0]
["fruits rouges surgeles ",null,null,{"$f":"SUMIF('2'!$D$11,#REF!,'2'!$E$11)","v":0},0,0,0]
["galette de legumes ","POMONA PASSION FRAIS",100,{"$f":"SUMIF('2'!$D$11,#REF!,'2'!$E$11)","v":0}]
["gateau 3 chocolat ","BRAIKE France",80,{"$f":"SUMIF('2'!$D$11,#REF!,'2'!$E$11)","v":0}]
["gateau basque","BRAIKE France",80,{"$f":"SUMIF('2'!$D$11,#REF!,'2'!$E$11)","v":0}]
["gateaux collectifs",null,null,{"$f":"SUMIF('2'!$D$11,#REF!,'2'!$E$11)","v":0},0,0,0]
["gauffre","BRAIKE France",70,{"$f":"SUMIF('2'!$D$11,#REF!,'2'!$E$11)","v":0}]
["gnocchi ","BRAIKE France",450,{"$f":"SUMIF('2'!$D$11,#REF!,'2'!$E$11)","v":0}]
["haricos verts ","POMONA PASSION FRAIS",1000,{"$f":"SUMIF('2'!$D$11,#REF!,'2'!$E$11)","v":0}]
["haricots beurre surgeles ",null,null,{"$f":"SUMIF('2'!$D$11,#REF!,'2'!$E$11)","v":0},0,0,0]
["haricots plats ","POMONA PASSION FRAIS",null,{"$f":"SUMIF('2'!$D$11,#REF!,'2'!$E$11)","v":0},0,0,0]
["haut de cuisse de poulet","GEL 43",150,{"$f":"SUMIF('2'!$D$11,#REF!,'2'!$E$11)","v":0},0,0,0]
["jardinière de légumes","POMONA PASSION FRAIS",200,{"$f":"SUMIF('2'!$D$11,#REF!,'2'!$E$11)","v":0}]
["jeunes carottes ",null,null,{"$f":"SUMIF('2'!$D$11,#REF!,'2'!$E$11)","v":0}]
["julienne de légumes ","POMONA PASSION FRAIS",50,{"$f":"SUMIF('2'!$D$11,#REF!,'2'!$E$11)","v":0}]
["keftas de volaille ",null,null,{"$f":"SUMIF('2'!$D$11,#REF!,'2'!$E$11)","v":0},0,0,0]
["langue de bœuf","GEL 43",90,{"$f":"SUMIF('2'!$D$11,#REF!,'2'!$E$11)","v":0}]
["legumes couscous surgeles ","POMONA PASSION FRAIS",300,{"$f":"SUMIF('2'!$D$11,#REF!,'2'!$E$11)","v":0},0,0,0]
["mars","BRAIKE France",600,{"$f":"SUMIF('2'!$D$11,#REF!,'2'!$E$11)","v":0}]
["mille feuille ","BRAIKE France",60,{"$f":"SUMIF('2'!$D$11,#REF!,'2'!$E$11)","v":0},0,0,0]
["mini croissant ","BRAIKE France",5,{"$f":"SUMIF('2'!$D$11,#REF!,'2'!$E$11)","v":0}]
["mini pain au chocolat","BRAIKE France",5,{"$f":"SUMIF('2'!$D$11,#REF!,'2'!$E$11)","v":0},0,0,0]
["mini pain au raisin ","BRAIKE France",5,{"$f":"SUMIF('2'!$D$11,#REF!,'2'!$E$11)","v":0},0,0,0]
["moule entiere","POMONA PASSION FRAIS",400,{"$f":"SUMIF('2'!$D$11,#REF!,'2'!$E$11)","v":0},0,0,0]
["navets surgeles ",null,null,{"$f":"SUMIF('2'!$D$11,#REF!,'2'!$E$11)","v":0},0,0,0]
["nems ","BRAIKE France",130,{"$f":"SUMIF('2'!$D$11,#REF!,'2'!$E$11)","v":0}]
["nuggets de poisson","BRAIKE France",90,{"$f":"SUMIF('2'!$D$11,#REF!,'2'!$E$11)","v":0},0,{"$f":"D113+E113","v":0},0]
["nuggets de poulet ","BRAIKE France",100,{"$f":"SUMIF('2'!$D$11,#REF!,'2'!$E$11)","v":0},0,0,0]
["oignon surgeles ",null,null,{"$f":"SUMIF('2'!$D$11,#REF!,'2'!$E$11)","v":0},1,{"$f":"D115+E115","v":1},0]
["opéra","BRAIKE France",80,{"$f":"SUMIF('2'!$D$11,#REF!,'2'!$E$11)","v":0}]
["pain kebab",null,null,{"$f":"SUMIF('2'!$D$11,#REF!,'2'!$E$11)","v":0},2,2,0]
["palette a la diable ","GEL 43",180,{"$f":"SUMIF('2'!$D$11,#REF!,'2'!$E$11)","v":0},3,3,0]
["pané de hoki ",null,null,{"$f":"SUMIF('2'!$D$11,#REF!,'2'!$E$11)","v":0},4,4,0]
["paris brest ","BRAIKE France",50,{"$f":"SUMIF('2'!$D$11,#REF!,'2'!$E$11)","v":0},5,5,0]
["pâte à lasagne ","BRAIKE France",120,{"$f":"SUMIF('2'!$D$11,#REF!,'2'!$E$11)","v":0},6,6,0]
["pate feuilletées","BRAIKE France",100,{"$f":"SUMIF('2'!$D$11,#REF!,'2'!$E$11)","v":0}]
["paupiette de veau","GEL 43",200,{"$f":"SUMIF('2'!$D$11,#REF!,'2'!$E$11)","v":0}]
["paupiette escalope de volaille","GEL 43",100,{"$f":"SUMIF('2'!$D$11,#REF!,'2'!$E$11)","v":0}]
["pave de sumon ","POMONA PASSION FRAIS",180,{"$f":"SUMIF('2'!$D$11,#REF!,'2'!$E$11)","v":0},7,7,0]
["persil surgeles ",null,null,{"$f":"SUMIF('2'!$D$11,#REF!,'2'!$E$11)","v":0},8,8,0]
["petits pois carottes surgeles ","POMONA PASSION FRAIS",300,{"$f":"SUMIF('2'!$D$11,#REF!,'2'!$E$11)","v":0},9,9,0]
["petits pois surgeles ","POMONA PASSION FRAIS",300,{"$f":"SUMIF('2'!$D$11,#REF!,'2'!$E$11)","v":0},10,10,0]
["pilon de poulet","GEL 43",80,{"$f":"SUMIF('2'!$D$11,#REF!,'2'!$E$11)","v":0},11,11,0]
["poelles de legumes /champignon","POMONA PASSION FRAIS",300,{"$f":"SUMIF('2'!$D$11,#REF!,'2'!$E$11)","v":0}]
["poelles de légumes asiatique","POMONA PASSION FRAIS",90,{"$f":"SUMIF('2'!$D$11,#REF!,'2'!$E$11)","v":0},12,12,0]
["poelles legumes campagnards","POMONA PASSION FRAIS",300,{"$f":"SUMIF('2'!$D$11,#REF!,'2'!$E$11)","v":0}]
["poids gourmands","POMONA PASSION FRAIS",30,{"$f":"SUMIF('2'!$D$11,#REF!,'2'!$E$11)","v":0}]
["poireaux surgeles ",null,null,{"$f":"SUMIF('2'!$D$11,#REF!,'2'!$E$11)","v":0},13,13,0]
["poissons panés",null,null,{"$f":"SUMIF('2'!$D$11,#REF!,'2'!$E$11)","v":0},14,14,0]
["poitrine de veau farcie","GEL 43",90,{"$f":"SUMIF('2'!$D$11,#REF!,'2'!$E$11)","v":0}]
["poivrons lanieres ","POMONA PASSION FRAIS",100,{"$f":"SUMIF('2'!$D$11,#REF!,'2'!$E$11)","v":0},15,15,0]
["pommes dauphine ","BRAIKE France",200,{"$f":"SUMIF('2'!$D$11,#REF!,'2'!$E$11)","v":0},16,16,0]
["pommes de terre campagnardes",null,null,{"$f":"SUMIF('2'!$D$11,#REF!,'2'!$E$11)","v":0},17,17,0]
["pommes duchesses ","BRAIKE France",200,{"$f":"SUMIF('2'!$D$11,#REF!,'2'!$E$11)","v":0},18,18,0]
["pommes noisettes ","BRAIKE France",250,{"$f":"SUMIF('2'!$D$11,#REF!,'2'!$E$11)","v":0},19,19,0]
["pommes rissolees ","POMONA PASSION FRAIS",1000,{"$f":"SUMIF('2'!$D$11,#REF!,'2'!$E$11)","v":0}]
["pommmes rondelles","POMONA PASSION FRAIS",200,{"$f":"SUMIF('2'!$D$11,#REF!,'2'!$E$11)","v":0},20,20,0]
["potatos","POMONA PASSION FRAIS",500,{"$f":"SUMIF('2'!$D$11,#REF!,'2'!$E$11)","v":0}]
["printanniere de legumes ","POMONA PASSION FRAIS",300,{"$f":"SUMIF('2'!$D$11,#REF!,'2'!$E$11)","v":0}]
["purée de carottes ","POMONA PASSION FRAIS",150,{"$f":"SUMIF('2'!$D$11,#REF!,'2'!$E$11)","v":0}]
["puree de potiron","POMONA PASSION FRAIS",150,{"$f":"SUMIF('2'!$D$11,#REF!,'2'!$E$11)","v":0}]
["purées de brocolis ","POMONA PASSION FRAIS",150,{"$f":"SUMIF('2'!$D$11,#REF!,'2'!$E$11)","v":0}]
["quenelle de brocjhet","BRAIKE France",260,{"$f":"SUMIF('2'!$D$11,#REF!,'2'!$E$11)","v":0}]
["ratatouille ","POMONA PASSION FRAIS",400,{"$f":"SUMIF('2'!$D$11,#REF!,'2'!$E$11)","v":0},21,21,0]
["roti de  dinde","GEL 43",90,{"$f":"SUMIF('2'!$D$11,#REF!,'2'!$E$11)","v":0}]
["salade verte",null,null,{"$f":"SUMIF('2'!$D$11,#REF!,'2'!$E$11)","v":0},22,22,0]
["salsifis","POMONA PASSION FRAIS",100,{"$f":"SUMIF('2'!$D$11,#REF!,'2'!$E$11)","v":0},23,23,0]
["samoussa",null,null,{"$f":"SUMIF('2'!$D$11,#REF!,'2'!$E$11)","v":0},24,24,0]
["saumonette",null,null,{"$f":"SUMIF('2'!$D$11,#REF!,'2'!$E$11)","v":0},25,25,0]
["sauté agneau","GEL 43",90,{"$f":"SUMIF('2'!$D$11,#REF!,'2'!$E$11)","v":0}]
["sauté de dinde","GEL 43",300,{"$f":"SUMIF('2'!$D$11,#REF!,'2'!$E$11)","v":0},26,26,0]
["snickers","BRAIKE France",600,{"$f":"SUMIF('2'!$D$11,#REF!,'2'!$E$11)","v":0}]
["steack hachés","GEL 43",550,{"$f":"SUMIF('2'!$D$11,#REF!,'2'!$E$11)","v":0},27,27,0]
["steack hachés de porc",null,null,{"$f":"SUMIF('2'!$D$11,#REF!,'2'!$E$11)","v":0},28,28,0]
["steack haches de veau","GEL 43",180,{"$f":"SUMIF('2'!$D$11,#REF!,'2'!$E$11)","v":0},29,29,0]
["Sunday choclat","BRAIKE France",10,{"$f":"SUMIF('2'!$D$11,#REF!,'2'!$E$11)","v":0}]
["Sunday vanille","BRAIKE France",10,{"$f":"SUMIF('2'!$D$11,#REF!,'2'!$E$11)","v":0}]
["tarte au citron ","BRAIKE France",80,{"$f":"SUMIF('2'!$D$11,#REF!,'2'!$E$11)","v":0}]
["tarte aux pomme ",null,null,{"$f":"SUMIF('2'!$D$11,#REF!,'2'!$E$11)","v":0}]
["terrine de legumes ",null,null,{"$f":"SUMIF('2'!$D$11,#REF!,'2'!$E$11)","v":0},30,30,0]
["terrines de poisson ",null,null,{"$f":"SUMIF('2'!$D$11,#REF!,'2'!$E$11)","v":0},31,31,0]
["tiramisu","BRAIKE France",80,{"$f":"SUMIF('2'!$D$11,#REF!,'2'!$E$11)","v":0},32,32,0]
["tortellini","BRAIKE France",60,{"$f":"SUMIF('2'!$D$11,#REF!,'2'!$E$11)","v":0}]
["viande kebab","GEL 43",350,{"$f":"SUMIF('2'!$D$11,#REF!,'2'!$E$11)","v":0}]
["FRIGO 1",null,null,{"$f":"SUMIF('2'!$D$11,#REF!,'2'!$E$11)","v":0},null,null,0]
["blanquette de veau",null,null,{"$f":"SUMIF('2'!$D$11,#REF!,'2'!$E$11)","v":0},35,35,0]
["bœuf braisé",null,null,{"$f":"SUMIF('2'!$D$11,#REF!,'2'!$E$11)","v":0},36,36,0]
["bourguignon",null,null,{"$f":"SUMIF('2'!$D$11,#REF!,'2'!$E$11)","v":0},37,37,0]
["caillettes","GUEZE",15,{"$f":"SUMIF('2'!$D$11,#REF!,'2'!$E$11)","v":0},38,38,0]
["cervelas","GUEZE",10,{"$f":"SUMIF('2'!$D$11,#REF!,'2'!$E$11)","v":0},39,39,0]
["champignon a la greque",null,null,{"$f":"SUMIF('2'!$D$11,#REF!,'2'!$E$11)","v":0},40,40,0]
["chipolatas","GUEZE",200,{"$f":"SUMIF('2'!$D$11,#REF!,'2'!$E$11)","v":0},41,41,0]
["chorizzo","GUEZE",10,{"$f":"SUMIF('2'!$D$11,#REF!,'2'!$E$11)","v":0},42,42,0]
["choucroute",null,null,{"$f":"SUMIF('2'!$D$11,#REF!,'2'!$E$11)","v":0},43,43,0]
["coleslaw",null,null,{"$f":"SUMIF('2'!$D$11,#REF!,'2'!$E$11)","v":0}]
["des de jambon ","GUEZE",20,{"$f":"SUMIF('2'!$D$11,#REF!,'2'!$E$11)","v":0},44,44,0]
["diot de savoie",null,null,{"$f":"SUMIF('2'!$D$11,#REF!,'2'!$E$11)","v":0},45,45,0]
["filet de hareng",null,null,{"$f":"SUMIF('2'!$D$11,#REF!,'2'!$E$11)","v":0},46,46,0]
["foie gras",null,null,{"$f":"SUMIF('2'!$D$11,#REF!,'2'!$E$11)","v":0},47,47,0]
["gnocchi",null,null,{"$f":"SUMIF('2'!$D$11,#REF!,'2'!$E$11)","v":0},48,48,0]
["jambon cru","GUEZE",10,{"$f":"SUMIF('2'!$D$11,#REF!,'2'!$E$11)","v":0},49,49,0]
["jambon cuits ","GUEZE",45,{"$f":"SUMIF('2'!$D$11,#REF!,'2'!$E$11)","v":0},50,50,0]
["jambon de parme ",null,null,{"$f":"SUMIF('2'!$D$11,#REF!,'2'!$E$11)","v":0},51,51,0]
["jambonnettes","GUEZE",30,{"$f":"SUMIF('2'!$D$11,#REF!,'2'!$E$11)","v":0},52,52,0]
["kit choucroute",null,null,{"$f":"SUMIF('2'!$D$11,#REF!,'2'!$E$11)","v":0}]
["lardon","GUEZE",100,{"$f":"SUMIF('2'!$D$11,#REF!,'2'!$E$11)","v":0},53,53,0]
["levure",null,null,{"$f":"SUMIF('2'!$D$11,#REF!,'2'!$E$11)","v":0},54,54,0]
["magret de canard",null,null,{"$f":"SUMIF('2'!$D$11,#REF!,'2'!$E$11)","v":0},55,55,0]
["mayonnaise seaux",null,null,{"$f":"SUMIF('2'!$D$11,#REF!,'2'!$E$11)","v":0},56,56,0]
["merguez",null,null,{"$f":"SUMIF('2'!$D$11,#REF!,'2'!$E$11)","v":0},57,57,0]
["merguez","GUEZE",100,{"$f":"SUMIF('2'!$D$11,#REF!,'2'!$E$11)","v":0},58,58,0]
["mousse de canard","GUEZE",10,{"$f":"SUMIF('2'!$D$11,#REF!,'2'!$E$11)","v":0}]
["mousse de foie",null,null,{"$f":"SUMIF('2'!$D$11,#REF!,'2'!$E$11)","v":0},59,59,0]
["paté croute","GUEZE",50,{"$f":"SUMIF('2'!$D$11,#REF!,'2'!$E$11)","v":0}]
["paté de campagne ","GUEZE",100,{"$f":"SUMIF('2'!$D$11,#REF!,'2'!$E$11)","v":0},60,60,0]
["pommes de terres en des ",null,null,{"$f":"SUMIF('2'!$D$11,#REF!,'2'!$E$11)","v":0},61,61,0]
["quenelles fraiches",null,null,{"$f":"SUMIF('2'!$D$11,#REF!,'2'!$E$11)","v":0},62,62,0]
["rosette ","GUEZE",40,{"$f":"SUMIF('2'!$D$11,#REF!,'2'!$E$11)","v":0},63,63,0]
["roti de bœuf ",null,null,{"$f":"SUMIF('2'!$D$11,#REF!,'2'!$E$11)","v":0},64,64,0]
["roti de porc",null,null,{"$f":"SUMIF('2'!$D$11,#REF!,'2'!$E$11)","v":0},65,{"$f":"D206+E206","v":65},0]
["salamis",null,null,{"$f":"SUMIF('2'!$D$11,#REF!,'2'!$E$11)","v":0},66,66,0]
["saucisse de franckfort ","GUEZE",50,{"$f":"SUMIF('2'!$D$11,#REF!,'2'!$E$11)","v":0},67,67,0]
["saucisse de strasbourg","GUEZE",90,{"$f":"SUMIF('2'!$D$11,#REF!,'2'!$E$11)","v":0},68,68,0]
["saucisse de toulouse","GUEZE",50,{"$f":"SUMIF('2'!$D$11,#REF!,'2'!$E$11)","v":0},69,69,0]
["saucisson a l ail ",null,null,{"$f":"SUMIF('2'!$D$11,#REF!,'2'!$E$11)","v":0},70,70,0]
["saumon fumé",null,null,{"$f":"SUMIF('2'!$D$11,#REF!,'2'!$E$11)","v":0},71,71,0]
["saute agneau",null,null,{"$f":"SUMIF('2'!$D$11,#REF!,'2'!$E$11)","v":0},72,72,0]
["sauté de porc",null,null,{"$f":"SUMIF('2'!$D$11,#REF!,'2'!$E$11)","v":0},73,73,0]
["steack de porc",null,null,{"$f":"SUMIF('2'!$D$11,#REF!,'2'!$E$11)","v":0}]
["surimi bloc ",null,null,{"$f":"SUMIF('2'!$D$11,#REF!,'2'!$E$11)","v":0}]
["surimi miettes",null,null,{"$f":"SUMIF('2'!$D$11,#REF!,'2'!$E$11)","v":0},74,74,0]
["FRIGO 2"]
["abondance",null,null,{"$f":"SUMIF('2'!$D$11,#REF!,'2'!$E$11)","v":0},76,76,0]
["beurre micro",null,null,{"$f":"SUMIF('2'!$D$11,#REF!,'2'!$E$11)","v":0},77,77,0]
["beurre plaquette",null,null,{"$f":"SUMIF('2'!$D$11,#REF!,'2'!$E$11)","v":0},78,78,0]
["bleu auvergne",null,null,{"$f":"SUMIF('2'!$D$11,#REF!,'2'!$E$11)","v":0},79,79,0]
["bombel",null,null,{"$f":"SUMIF('2'!$D$11,#REF!,'2'!$E$11)","v":0},80,80,0]
["boursin ail et fines herbes",null,null,{"$f":"SUMIF('2'!$D$11,#REF!,'2'!$E$11)","v":0},81,81,0]
["brie portion ",null,null,{"$f":"SUMIF('2'!$D$11,#REF!,'2'!$E$11)","v":0},82,82,0]
["brie portion ",null,null,{"$f":"SUMIF('2'!$D$11,#REF!,'2'!$E$11)","v":0},83,83,0]
["brique de bleu",null,null,{"$f":"SUMIF('2'!$D$11,#REF!,'2'!$E$11)","v":0},84,84,0]
["buche de chevre",null,null,{"$f":"SUMIF('2'!$D$11,#REF!,'2'!$E$11)","v":0},85,85,0]
["buche de pilat",null,null,{"$f":"SUMIF('2'!$D$11,#REF!,'2'!$E$11)","v":0},86,86,0]
["caille frais",null,null,{"$f":"SUMIF('2'!$D$11,#REF!,'2'!$E$11)","v":0},87,87,0]
["camembert",null,null,{"$f":"SUMIF('2'!$D$11,#REF!,'2'!$E$11)","v":0},88,88,0]
["camembert portion",null,null,{"$f":"SUMIF('2'!$D$11,#REF!,'2'!$E$11)","v":0},89,89,0]
["cantal",null,null,{"$f":"SUMIF('2'!$D$11,#REF!,'2'!$E$11)","v":0},90,90,0]
["carré frais",null,null,{"$f":"SUMIF('2'!$D$11,#REF!,'2'!$E$11)","v":0},91,91,0]
["chanteneige",null,null,{"$f":"SUMIF('2'!$D$11,#REF!,'2'!$E$11)","v":0},92,92,0]
["chavroux",null,null,{"$f":"SUMIF('2'!$D$11,#REF!,'2'!$E$11)","v":0},93,93,0]
["conté portion ",null,null,{"$f":"SUMIF('2'!$D$11,#REF!,'2'!$E$11)","v":0},94,94,0]
["creme brulé",null,null,{"$f":"SUMIF('2'!$D$11,#REF!,'2'!$E$11)","v":0},95,95,0]
["creme fraiche ",null,null,{"$f":"SUMIF('2'!$D$11,#REF!,'2'!$E$11)","v":0},96,96,0]
["des de bleu ",null,null,{"$f":"SUMIF('2'!$D$11,#REF!,'2'!$E$11)","v":0},97,97,0]
["des de feta ",null,null,{"$f":"SUMIF('2'!$D$11,#REF!,'2'!$E$11)","v":0},98,98,0]
["des de fourme d ambert ",null,null,{"$f":"SUMIF('2'!$D$11,#REF!,'2'!$E$11)","v":0},99,99,0]
["des de gruyere ",null,null,{"$f":"SUMIF('2'!$D$11,#REF!,'2'!$E$11)","v":0},100,100,0]
["des de jambon ",null,null,{"$f":"SUMIF('2'!$D$11,#REF!,'2'!$E$11)","v":0},101,101,0]
["des de mimolette",null,null,{"$f":"SUMIF('2'!$D$11,#REF!,'2'!$E$11)","v":0},102,102,0]
["des de roquefort",null,null,{"$f":"SUMIF('2'!$D$11,#REF!,'2'!$E$11)","v":0},103,103,0]
["emmental portion ",null,null,{"$f":"SUMIF('2'!$D$11,#REF!,'2'!$E$11)","v":0},104,104,0]
["flan",null,null,{"$f":"SUMIF('2'!$D$11,#REF!,'2'!$E$11)","v":0},105,105,0]
["fromage blanc",null,null,{"$f":"SUMIF('2'!$D$11,#REF!,'2'!$E$11)","v":0},106,106,0]
["fromage hamburger",null,null,{"$f":"SUMIF('2'!$D$11,#REF!,'2'!$E$11)","v":0},107,107,0]
["gateau de riz ",null,null,{"$f":"SUMIF('2'!$D$11,#REF!,'2'!$E$11)","v":0},108,108,0]
["gateau de semoule ",null,null,{"$f":"SUMIF('2'!$D$11,#REF!,'2'!$E$11)","v":0},109,109,0]
["gruyere bloc ",null,null,{"$f":"SUMIF('2'!$D$11,#REF!,'2'!$E$11)","v":0},110,110,0]
["gruyere rapé ",null,null,{"$f":"SUMIF('2'!$D$11,#REF!,'2'!$E$11)","v":0},111,111,0]
["iles flottantes",null,null,{"$f":"SUMIF('2'!$D$11,#REF!,'2'!$E$11)","v":0},112,112,0]
["kiri",null,null,{"$f":"SUMIF('2'!$D$11,#REF!,'2'!$E$11)","v":0},113,113,0]
["lait",null,null,{"$f":"SUMIF('2'!$D$11,#REF!,'2'!$E$11)","v":0},114,114,0]
["liegeois café",null,null,{"$f":"SUMIF('2'!$D$11,#REF!,'2'!$E$11)","v":0},115,115,0]
["liegeois chocolat",null,null,{"$f":"SUMIF('2'!$D$11,#REF!,'2'!$E$11)","v":0},116,116,0]
["liegeois vanille ",null,null,{"$f":"SUMIF('2'!$D$11,#REF!,'2'!$E$11)","v":0},117,117,0]
["mini babybel ",null,null,{"$f":"SUMIF('2'!$D$11,#REF!,'2'!$E$11)","v":0},118,118,0]
["mini cabrette ",null,null,{"$f":"SUMIF('2'!$D$11,#REF!,'2'!$E$11)","v":0},119,119,0]
["mini roitelet ",null,null,{"$f":"SUMIF('2'!$D$11,#REF!,'2'!$E$11)","v":0},120,120,0]
["mousse au chocolat",null,null,{"$f":"SUMIF('2'!$D$11,#REF!,'2'!$E$11)","v":0},121,121,0]
["mozzarella bloc",null,null,{"$f":"SUMIF('2'!$D$11,#REF!,'2'!$E$11)","v":0},122,122,0]
["mozzarella des ",null,null,{"$f":"SUMIF('2'!$D$11,#REF!,'2'!$E$11)","v":0},123,123,0]
["munster",null,null,{"$f":"SUMIF('2'!$D$11,#REF!,'2'!$E$11)","v":0},124,124,0]
["œuf durs ",null,null,{"$f":"SUMIF('2'!$D$11,#REF!,'2'!$E$11)","v":0},125,125,0]
["œuf liquide ",null,null,{"$f":"SUMIF('2'!$D$11,#REF!,'2'!$E$11)","v":0},126,126,0]
["pavé affinois ",null,null,{"$f":"SUMIF('2'!$D$11,#REF!,'2'!$E$11)","v":0},127,127,0]
["petits louis fromage",null,null,{"$f":"SUMIF('2'!$D$11,#REF!,'2'!$E$11)","v":0},128,128,0]
["petits suisses aux fruits",null,null,{"$f":"SUMIF('2'!$D$11,#REF!,'2'!$E$11)","v":0},129,{"$f":"D272+E272","v":129},0]
["petits suisses nature ",null,null,{"$f":"SUMIF('2'!$D$11,#REF!,'2'!$E$11)","v":0},130,130,0]
["port salut",null,null,{"$f":"SUMIF('2'!$D$11,#REF!,'2'!$E$11)","v":0},131,131,0]
["reblochon ",null,null,{"$f":"SUMIF('2'!$D$11,#REF!,'2'!$E$11)","v":0},132,132,0]
["roquefort portion ",null,null,{"$f":"SUMIF('2'!$D$11,#REF!,'2'!$E$11)","v":0},133,133,0]
["samos",null,null,{"$f":"SUMIF('2'!$D$11,#REF!,'2'!$E$11)","v":0},134,134,0]
["st agur ",null,null,{"$f":"SUMIF('2'!$D$11,#REF!,'2'!$E$11)","v":0},135,135,0]
["st marcelin ",null,null,{"$f":"SUMIF('2'!$D$11,#REF!,'2'!$E$11)","v":0},136,136,0]
["st moret ",null,null,{"$f":"SUMIF('2'!$D$11,#REF!,'2'!$E$11)","v":0},137,137,0]
["st paulin a la coupe ",null,null,{"$f":"SUMIF('2'!$D$11,#REF!,'2'!$E$11)","v":0},138,138,0]
["st paulin portion ",null,null,{"$f":"SUMIF('2'!$D$11,#REF!,'2'!$E$11)","v":0},139,139,0]
["tartare",null,null,{"$f":"SUMIF('2'!$D$11,#REF!,'2'!$E$11)","v":0},140,140,0]
["tome blanche portion ",null,null,{"$f":"SUMIF('2'!$D$11,#REF!,'2'!$E$11)","v":0},141,141,0]
["tome blanche portion ",null,null,{"$f":"SUMIF('2'!$D$11,#REF!,'2'!$E$11)","v":0},142,142,0]
["tome noire portion ",null,null,{"$f":"SUMIF('2'!$D$11,#REF!,'2'!$E$11)","v":0},143,143,0]
["vache qui rit",null,null,{"$f":"SUMIF('2'!$D$11,#REF!,'2'!$E$11)","v":0},144,144,0]
["yaourt aroatisé ",null,null,{"$f":"SUMIF('2'!$D$11,#REF!,'2'!$E$11)","v":0},145,145,0]
["yaourt nature ",null,null,{"$f":"SUMIF('2'!$D$11,#REF!,'2'!$E$11)","v":0},146,146,0]
["FRIGO 3"]
["abricots",null,null,{"$f":"SUMIF('2'!$D$11,#REF!,'2'!$E$11)","v":0},148,148,0]
["ail frais",null,null,{"$f":"SUMIF('2'!$D$11,#REF!,'2'!$E$11)","v":0},149,149,0]
["ananas",null,null,{"$f":"SUMIF('2'!$D$11,#REF!,'2'!$E$11)","v":0},150,150,0]
["aneth",null,null,{"$f":"SUMIF('2'!$D$11,#REF!,'2'!$E$11)","v":0},151,151,0]
["artichauts",null,null,{"$f":"SUMIF('2'!$D$11,#REF!,'2'!$E$11)","v":0},152,152,0]
["aubergine",null,null,{"$f":"SUMIF('2'!$D$11,#REF!,'2'!$E$11)","v":0},153,153,0]
["avocats",null,null,{"$f":"SUMIF('2'!$D$11,#REF!,'2'!$E$11)","v":0},154,154,0]
["banane",null,null,{"$f":"SUMIF('2'!$D$11,#REF!,'2'!$E$11)","v":0},155,155,0]
["basilic frais",null,null,{"$f":"SUMIF('2'!$D$11,#REF!,'2'!$E$11)","v":0},156,156,0]
["carottes fraiche",null,null,{"$f":"SUMIF('2'!$D$11,#REF!,'2'!$E$11)","v":0},157,157,0]
["carottes rapees",null,null,{"$f":"SUMIF('2'!$D$11,#REF!,'2'!$E$11)","v":0},158,158,0]
["cerfeuil",null,null,{"$f":"SUMIF('2'!$D$11,#REF!,'2'!$E$11)","v":0},159,159,0]
["cerise",null,null,{"$f":"SUMIF('2'!$D$11,#REF!,'2'!$E$11)","v":0},160,160,0]
["cerises",null,null,{"$f":"SUMIF('2'!$D$11,#REF!,'2'!$E$11)","v":0},161,161,0]
["choux blanc ou rouge",null,null,{"$f":"SUMIF('2'!$D$11,#REF!,'2'!$E$11)","v":0},162,162,0]
["choux chinois",null,null,{"$f":"SUMIF('2'!$D$11,#REF!,'2'!$E$11)","v":0},163,163,0]
["ciboulette fraiche",null,null,{"$f":"SUMIF('2'!$D$11,#REF!,'2'!$E$11)","v":0},164,164,0]
["citron",null,null,{"$f":"SUMIF('2'!$D$11,#REF!,'2'!$E$11)","v":0},165,165,0]
["clementines",null,null,{"$f":"SUMIF('2'!$D$11,#REF!,'2'!$E$11)","v":0},166,166,0]
["concombre",null,null,{"$f":"SUMIF('2'!$D$11,#REF!,'2'!$E$11)","v":0},167,167,0]
["courgette fraiche ",null,null,{"$f":"SUMIF('2'!$D$11,#REF!,'2'!$E$11)","v":0},168,168,0]
["endive ",null,null,{"$f":"SUMIF('2'!$D$11,#REF!,'2'!$E$11)","v":0},169,169,0]
["estragon",null,null,{"$f":"SUMIF('2'!$D$11,#REF!,'2'!$E$11)","v":0},170,170,0]
["fraise s",null,null,{"$f":"SUMIF('2'!$D$11,#REF!,'2'!$E$11)","v":0},171,171,0]
["kiwi",null,null,{"$f":"SUMIF('2'!$D$11,#REF!,'2'!$E$11)","v":0},172,172,0]
["mache",null,null,{"$f":"SUMIF('2'!$D$11,#REF!,'2'!$E$11)","v":0},173,173,0]
["melon ",null,null,{"$f":"SUMIF('2'!$D$11,#REF!,'2'!$E$11)","v":0},174,174,0]
["menthe",null,null,{"$f":"SUMIF('2'!$D$11,#REF!,'2'!$E$11)","v":0},175,175,0]
["orange ",null,null,{"$f":"SUMIF('2'!$D$11,#REF!,'2'!$E$11)","v":0},176,176,0]
["pamplemousse",null,null,{"$f":"SUMIF('2'!$D$11,#REF!,'2'!$E$11)","v":0},177,177,0]
["pasteque",null,null,{"$f":"SUMIF('2'!$D$11,#REF!,'2'!$E$11)","v":0},178,178,0]
["peche",null,null,{"$f":"SUMIF('2'!$D$11,#REF!,'2'!$E$11)","v":0},179,179,0]
["persil botte",null,null,{"$f":"SUMIF('2'!$D$11,#REF!,'2'!$E$11)","v":0},180,180,0]
["poire",null,null,{"$f":"SUMIF('2'!$D$11,#REF!,'2'!$E$11)","v":0},181,181,0]
["poireaux ",null,null,{"$f":"SUMIF('2'!$D$11,#REF!,'2'!$E$11)","v":0},182,182,0]
["poivrons frais ",null,null,{"$f":"SUMIF('2'!$D$11,#REF!,'2'!$E$11)","v":0},183,183,0]
["pomme ",null,null,{"$f":"SUMIF('2'!$D$11,#REF!,'2'!$E$11)","v":0},184,184,0]
["pomme de terre",null,null,{"$f":"SUMIF('2'!$D$11,#REF!,'2'!$E$11)","v":0},185,185,0]
["prunes ",null,null,{"$f":"SUMIF('2'!$D$11,#REF!,'2'!$E$11)","v":0},186,186,0]
["radis sous vide ",null,null,{"$f":"SUMIF('2'!$D$11,#REF!,'2'!$E$11)","v":0},187,187,0]
["raisin ",null,null,{"$f":"SUMIF('2'!$D$11,#REF!,'2'!$E$11)","v":0},188,188,0]
["vin blanc vrac ",null,null,{"$f":"SUMIF('2'!$D$11,#REF!,'2'!$E$11)","v":0},189,189,0]
["vin rouge vrac ",null,null,{"$f":"SUMIF('2'!$D$11,#REF!,'2'!$E$11)","v":0},190,190,0]
["EPICERIE",null,null,{"$f":"SUMIF('2'!$D$11,#REF!,'2'!$E$11)","v":0},null,null,0]
["abricots au sirop",null,null,{"$f":"SUMIF('2'!$D$11,#REF!,'2'!$E$11)","v":0},192,192,0]
["ananas traches entieres",null,null,{"$f":"SUMIF('2'!$D$11,#REF!,'2'!$E$11)","v":0},193,{"$f":"D336+E336","v":193},0]
["ananas tranches brisees",null,null,{"$f":"SUMIF('2'!$D$11,#REF!,'2'!$E$11)","v":0},194,194,0]
["asperge",null,null,{"$f":"SUMIF('2'!$D$11,#REF!,'2'!$E$11)","v":0},195,195,0]
["baie de genievre",null,null,{"$f":"SUMIF('2'!$D$11,#REF!,'2'!$E$11)","v":0},196,196,0]
["betteraves en dés",null,null,{"$f":"SUMIF('2'!$D$11,#REF!,'2'!$E$11)","v":0},197,197,0]
["bierre",null,null,{"$f":"SUMIF('2'!$D$11,#REF!,'2'!$E$11)","v":0},198,198,0]
["bigareau au sirop",null,null,{"$f":"SUMIF('2'!$D$11,#REF!,'2'!$E$11)","v":0},199,199,0]
["bisque de homard",null,null,{"$f":"SUMIF('2'!$D$11,#REF!,'2'!$E$11)","v":0},200,200,0]
["blé",null,null,{"$f":"SUMIF('2'!$D$11,#REF!,'2'!$E$11)","v":0},201,201,0]
["bouillon de legumes",null,null,{"$f":"SUMIF('2'!$D$11,#REF!,'2'!$E$11)","v":0},202,202,0]
["bouillon de volaille",null,null,{"$f":"SUMIF('2'!$D$11,#REF!,'2'!$E$11)","v":0},203,203,0]
["boulgour",null,null,{"$f":"SUMIF('2'!$D$11,#REF!,'2'!$E$11)","v":0},204,204,0]
["brownies",null,null,{"$f":"SUMIF('2'!$D$11,#REF!,'2'!$E$11)","v":0},205,205,0]
["café",null,null,{"$f":"SUMIF('2'!$D$11,#REF!,'2'!$E$11)","v":0},206,206,0]
["capres",null,null,{"$f":"SUMIF('2'!$D$11,#REF!,'2'!$E$11)","v":0},207,207,0]
["celeris remoulade",null,null,{"$f":"SUMIF('2'!$D$11,#REF!,'2'!$E$11)","v":0},208,208,0]
["cerneau de noix",null,null,{"$f":"SUMIF('2'!$D$11,#REF!,'2'!$E$11)","v":0},209,209,0]
["champignons entiers",null,null,{"$f":"SUMIF('2'!$D$11,#REF!,'2'!$E$11)","v":0},210,210,0]
["champignons pied et morceaux",null,null,{"$f":"SUMIF('2'!$D$11,#REF!,'2'!$E$11)","v":0},211,211,0]
["chapelure",null,null,{"$f":"SUMIF('2'!$D$11,#REF!,'2'!$E$11)","v":0},212,212,0]
["chips",null,null,{"$f":"SUMIF('2'!$D$11,#REF!,'2'!$E$11)","v":0},213,213,0]
["clou de giroffle",null,null,{"$f":"SUMIF('2'!$D$11,#REF!,'2'!$E$11)","v":0},214,214,0]
["cocktai de fruits au sirop",null,null,{"$f":"SUMIF('2'!$D$11,#REF!,'2'!$E$11)","v":0},215,215,0]
["compote de peche",null,null,{"$f":"SUMIF('2'!$D$11,#REF!,'2'!$E$11)","v":0},216,216,0]
["compote de poire",null,null,{"$f":"SUMIF('2'!$D$11,#REF!,'2'!$E$11)","v":0},217,217,0]
["compote de pomme",null,null,{"$f":"SUMIF('2'!$D$11,#REF!,'2'!$E$11)","v":0},218,218,0]
["concentre de tomate bte 4/4",null,null,{"$f":"SUMIF('2'!$D$11,#REF!,'2'!$E$11)","v":0},219,219,0]
["concentre de tomate bte 5/1",null,null,{"$f":"SUMIF('2'!$D$11,#REF!,'2'!$E$11)","v":0},220,220,0]
["coquillettes",null,null,{"$f":"SUMIF('2'!$D$11,#REF!,'2'!$E$11)","v":0},221,221,0]
["coriandre",null,null,{"$f":"SUMIF('2'!$D$11,#REF!,'2'!$E$11)","v":0},222,222,0]
["coriandre",null,null,{"$f":"SUMIF('2'!$D$11,#REF!,'2'!$E$11)","v":0},223,223,0]
["cornichon ",null,null,{"$f":"SUMIF('2'!$D$11,#REF!,'2'!$E$11)","v":0},224,224,0]
["cornichon rondelles ",null,null,{"$f":"SUMIF('2'!$D$11,#REF!,'2'!$E$11)","v":0},225,225,0]
["cote de blettes ",null,null,{"$f":"SUMIF('2'!$D$11,#REF!,'2'!$E$11)","v":0},226,226,0]
["coulis de tomate ",null,null,{"$f":"SUMIF('2'!$D$11,#REF!,'2'!$E$11)","v":0},227,227,0]
["creme de marron ",null,null,{"$f":"SUMIF('2'!$D$11,#REF!,'2'!$E$11)","v":0},228,228,0]
["creme dessert caramel",null,null,{"$f":"SUMIF('2'!$D$11,#REF!,'2'!$E$11)","v":0},229,229,0]
["creme dessert chocolat",null,null,{"$f":"SUMIF('2'!$D$11,#REF!,'2'!$E$11)","v":0},230,230,0]
["creme dessert pistache",null,null,{"$f":"SUMIF('2'!$D$11,#REF!,'2'!$E$11)","v":0},231,231,0]
["creme dessert vanille",null,null,{"$f":"SUMIF('2'!$D$11,#REF!,'2'!$E$11)","v":0},232,232,0]
["crouton a l'ail",null,null,{"$f":"SUMIF('2'!$D$11,#REF!,'2'!$E$11)","v":0},233,233,0]
["crozet ",null,null,{"$f":"SUMIF('2'!$D$11,#REF!,'2'!$E$11)","v":0},234,234,0]
["crozet au sarasin ",null,null,{"$f":"SUMIF('2'!$D$11,#REF!,'2'!$E$11)","v":0},235,235,0]
["cumin ",null,null,{"$f":"SUMIF('2'!$D$11,#REF!,'2'!$E$11)","v":0},236,236,0]
["curry",null,null,{"$f":"SUMIF('2'!$D$11,#REF!,'2'!$E$11)","v":0},237,237,0]
["eau ",null,null,{"$f":"SUMIF('2'!$D$11,#REF!,'2'!$E$11)","v":0},238,238,0]
["farfalle",null,null,{"$f":"SUMIF('2'!$D$11,#REF!,'2'!$E$11)","v":0},239,239,0]
["farine ",null,null,{"$f":"SUMIF('2'!$D$11,#REF!,'2'!$E$11)","v":0},240,240,0]
["filet d anchois ",null,null,{"$f":"SUMIF('2'!$D$11,#REF!,'2'!$E$11)","v":0},241,241,0]
["flageolet",null,null,{"$f":"SUMIF('2'!$D$11,#REF!,'2'!$E$11)","v":0},242,242,0]
["fond artichauts",null,null,{"$f":"SUMIF('2'!$D$11,#REF!,'2'!$E$11)","v":0},243,243,0]
["fond brun lié",null,null,{"$f":"SUMIF('2'!$D$11,#REF!,'2'!$E$11)","v":0},244,244,0]
["fumet de poisson ",null,null,{"$f":"SUMIF('2'!$D$11,#REF!,'2'!$E$11)","v":0},245,245,0]
["garniture taboulé",null,null,{"$f":"SUMIF('2'!$D$11,#REF!,'2'!$E$11)","v":0},246,246,0]
["germe de soja",null,null,{"$f":"SUMIF('2'!$D$11,#REF!,'2'!$E$11)","v":0},247,247,0]
["haricots beurre bte ",null,null,{"$f":"SUMIF('2'!$D$11,#REF!,'2'!$E$11)","v":0},248,248,0]
["haricots rouge boites",null,null,{"$f":"SUMIF('2'!$D$11,#REF!,'2'!$E$11)","v":0},249,249,0]
["haricots verts boites",null,null,{"$f":"SUMIF('2'!$D$11,#REF!,'2'!$E$11)","v":0},250,250,0]
["harissa ",null,null,{"$f":"SUMIF('2'!$D$11,#REF!,'2'!$E$11)","v":0},251,251,0]
["herbe de provence",null,null,{"$f":"SUMIF('2'!$D$11,#REF!,'2'!$E$11)","v":0},252,252,0]
["huile d olive ",null,null,{"$f":"SUMIF('2'!$D$11,#REF!,'2'!$E$11)","v":0},253,253,0]
["huile de colza ",null,null,{"$f":"SUMIF('2'!$D$11,#REF!,'2'!$E$11)","v":0},254,254,0]
["huile de friture ",null,null,{"$f":"SUMIF('2'!$D$11,#REF!,'2'!$E$11)","v":0},255,255,0]
["huile de tournesol ",null,null,{"$f":"SUMIF('2'!$D$11,#REF!,'2'!$E$11)","v":0},256,256,0]
["jet bar ketchup ",null,null,{"$f":"SUMIF('2'!$D$11,#REF!,'2'!$E$11)","v":0},257,{"$f":"D400+E400","v":257},0]
["jet bar moutarde ",null,null,{"$f":"SUMIF('2'!$D$11,#REF!,'2'!$E$11)","v":0},258,258,0]
["ketchup doses ",null,null,{"$f":"SUMIF('2'!$D$11,#REF!,'2'!$E$11)","v":0},259,259,0]
["laurier feuilles ",null,null,{"$f":"SUMIF('2'!$D$11,#REF!,'2'!$E$11)","v":0},260,260,0]
["legumes couscous boite",null,null,{"$f":"SUMIF('2'!$D$11,#REF!,'2'!$E$11)","v":0},261,261,0]
["lentilles boites ",null,null,{"$f":"SUMIF('2'!$D$11,#REF!,'2'!$E$11)","v":0},262,262,0]
["lentilles seches ",null,null,{"$f":"SUMIF('2'!$D$11,#REF!,'2'!$E$11)","v":0},263,263,0]
["lychee au sirop ",null,null,{"$f":"SUMIF('2'!$D$11,#REF!,'2'!$E$11)","v":0},264,264,0]
["macaroni",null,null,{"$f":"SUMIF('2'!$D$11,#REF!,'2'!$E$11)","v":0},265,265,0]
["macédoine de legumes ",null,null,{"$f":"SUMIF('2'!$D$11,#REF!,'2'!$E$11)","v":0},266,266,0]
["mais",null,null,{"$f":"SUMIF('2'!$D$11,#REF!,'2'!$E$11)","v":0},267,267,0]
["maizena",null,null,{"$f":"SUMIF('2'!$D$11,#REF!,'2'!$E$11)","v":0},268,268,0]
["maquereaux au vin blanc ",null,null,{"$f":"SUMIF('2'!$D$11,#REF!,'2'!$E$11)","v":0},269,269,0]
["mayonnaise doses",null,null,{"$f":"SUMIF('2'!$D$11,#REF!,'2'!$E$11)","v":0},270,270,0]
["miel ",null,null,{"$f":"SUMIF('2'!$D$11,#REF!,'2'!$E$11)","v":0},271,271,0]
["moutarde seaux",null,null,{"$f":"SUMIF('2'!$D$11,#REF!,'2'!$E$11)","v":0},272,272,0]
["nappage chocolat ",null,null,{"$f":"SUMIF('2'!$D$11,#REF!,'2'!$E$11)","v":0},273,273,0]
["nappage fruits rouge",null,null,{"$f":"SUMIF('2'!$D$11,#REF!,'2'!$E$11)","v":0},274,274,0]
["oignon /echalotte",null,null,{"$f":"SUMIF('2'!$D$11,#REF!,'2'!$E$11)","v":0},275,275,0]
["olives noire denoyautées",null,null,{"$f":"SUMIF('2'!$D$11,#REF!,'2'!$E$11)","v":0},276,276,0]
["olives noires rondelles ",null,null,{"$f":"SUMIF('2'!$D$11,#REF!,'2'!$E$11)","v":0},277,277,0]
["olives verte denoyautées",null,null,{"$f":"SUMIF('2'!$D$11,#REF!,'2'!$E$11)","v":0},278,278,0]
["pain ",null,null,{"$f":"SUMIF('2'!$D$11,#REF!,'2'!$E$11)","v":0},279,279,0]
["pain de mie ",null,null,{"$f":"SUMIF('2'!$D$11,#REF!,'2'!$E$11)","v":0},280,280,0]
["pain d'épice ",null,null,{"$f":"SUMIF('2'!$D$11,#REF!,'2'!$E$11)","v":0},281,281,0]
["pain hamburger",null,null,{"$f":"SUMIF('2'!$D$11,#REF!,'2'!$E$11)","v":0},282,282,0]
["pate a lasagne ",null,null,{"$f":"SUMIF('2'!$D$11,#REF!,'2'!$E$11)","v":0},283,283,0]
["pate a tartiner",null,null,{"$f":"SUMIF('2'!$D$11,#REF!,'2'!$E$11)","v":0},284,284,0]
["peche au sirop ",null,null,{"$f":"SUMIF('2'!$D$11,#REF!,'2'!$E$11)","v":0},285,285,0]
["petits pois boites ",null,null,{"$f":"SUMIF('2'!$D$11,#REF!,'2'!$E$11)","v":0},286,286,0]
["petits pois carottes  boites ",null,null,{"$f":"SUMIF('2'!$D$11,#REF!,'2'!$E$11)","v":0},287,287,0]
["pique nique",null,null,{"$f":"SUMIF('2'!$D$11,#REF!,'2'!$E$11)","v":0},288,288,0]
["pois chiches ",null,null,{"$f":"SUMIF('2'!$D$11,#REF!,'2'!$E$11)","v":0},289,289,0]
["poivre ",null,null,{"$f":"SUMIF('2'!$D$11,#REF!,'2'!$E$11)","v":0},290,290,0]
["polenta",null,null,{"$f":"SUMIF('2'!$D$11,#REF!,'2'!$E$11)","v":0},291,291,0]
["pousse de soja ",null,null,{"$f":"SUMIF('2'!$D$11,#REF!,'2'!$E$11)","v":0},292,292,0]
["pulco",null,null,{"$f":"SUMIF('2'!$D$11,#REF!,'2'!$E$11)","v":0},293,293,0]
["quenelles boites ",null,null,{"$f":"SUMIF('2'!$D$11,#REF!,'2'!$E$11)","v":0},294,294,0]
["raisin sec",null,null,{"$f":"SUMIF('2'!$D$11,#REF!,'2'!$E$11)","v":0},295,295,0]
["raz el hanout",null,null,{"$f":"SUMIF('2'!$D$11,#REF!,'2'!$E$11)","v":0},296,296,0]
["riz",null,null,{"$f":"SUMIF('2'!$D$11,#REF!,'2'!$E$11)","v":0},297,297,0]
["riz d or ",null,null,{"$f":"SUMIF('2'!$D$11,#REF!,'2'!$E$11)","v":0},298,298,0]
["safran ",null,null,{"$f":"SUMIF('2'!$D$11,#REF!,'2'!$E$11)","v":0},299,299,0]
["salsifis boites",null,null,{"$f":"SUMIF('2'!$D$11,#REF!,'2'!$E$11)","v":0},300,300,0]
["sardine",null,null,{"$f":"SUMIF('2'!$D$11,#REF!,'2'!$E$11)","v":0},301,301,0]
["sauce au beurre blanc ",null,null,{"$f":"SUMIF('2'!$D$11,#REF!,'2'!$E$11)","v":0},302,302,0]
["sauce aux poivre vert ",null,null,{"$f":"SUMIF('2'!$D$11,#REF!,'2'!$E$11)","v":0},303,303,0]
["sauce pizza ",null,null,{"$f":"SUMIF('2'!$D$11,#REF!,'2'!$E$11)","v":0},304,304,0]
["saucisse strasbourg boites",null,null,{"$f":"SUMIF('2'!$D$11,#REF!,'2'!$E$11)","v":0},305,305,0]
["segment mandarine ",null,null,{"$f":"SUMIF('2'!$D$11,#REF!,'2'!$E$11)","v":0},306,306,0]
["segment pamplemousse ",null,null,{"$f":"SUMIF('2'!$D$11,#REF!,'2'!$E$11)","v":0},307,307,0]
["sel fin ",null,null,{"$f":"SUMIF('2'!$D$11,#REF!,'2'!$E$11)","v":0},308,308,0]
["semoule couscous ",null,null,{"$f":"SUMIF('2'!$D$11,#REF!,'2'!$E$11)","v":0},309,309,0]
["spaghetti ",null,null,{"$f":"SUMIF('2'!$D$11,#REF!,'2'!$E$11)","v":0},310,310,0]
["sucre glace ",null,null,{"$f":"SUMIF('2'!$D$11,#REF!,'2'!$E$11)","v":0},311,311,0]
["sucre sachet ",null,null,{"$f":"SUMIF('2'!$D$11,#REF!,'2'!$E$11)","v":0},312,312,0]
["sucre semoule ",null,null,{"$f":"SUMIF('2'!$D$11,#REF!,'2'!$E$11)","v":0},313,313,0]
["thom ",null,null,{"$f":"SUMIF('2'!$D$11,#REF!,'2'!$E$11)","v":0},314,314,0]
["thym ",null,null,{"$f":"SUMIF('2'!$D$11,#REF!,'2'!$E$11)","v":0},315,315,0]
["toast",null,null,{"$f":"SUMIF('2'!$D$11,#REF!,'2'!$E$11)","v":0},316,316,0]
["tomate pelées et concassée",null,null,{"$f":"SUMIF('2'!$D$11,#REF!,'2'!$E$11)","v":0},317,317,0]
["torsades",null,null,{"$f":"SUMIF('2'!$D$11,#REF!,'2'!$E$11)","v":0},318,318,0]
["vin bouteille ",null,null,{"$f":"SUMIF('2'!$D$11,#REF!,'2'!$E$11)","v":0},319,319,0]
["vinaigre",null,null,{"$f":"SUMIF('2'!$D$11,#REF!,'2'!$E$11)","v":0},320,320,0]
["vinaigre balsamique ",null,null,{"$f":"SUMIF('2'!$D$11,#REF!,'2'!$E$11)","v":0},321,{"$f":"D464+E464","v":321},0]
[null,null,null,{"$f":"SUMIF('2'!$D$11,#REF!,'2'!$E$11)","v":0},322,322,0]
[null,null,null,{"$f":"SUMIF('2'!$D$11,#REF!,'2'!$E$11)","v":0},323,323,0]
[null,null,null,{"$f":"SUMIF('2'!$D$11,#REF!,'2'!$E$11)","v":0},324,324,0]
[null,null,null,{"$f":"SUMIF('2'!$D$11,#REF!,'2'!$E$11)","v":0},325,325,0]
[null,null,null,{"$f":"SUMIF('2'!$D$11,#REF!,'2'!$E$11)","v":0},326,326,0]
[null,null,null,{"$f":"SUMIF('2'!$D$11,#REF!,'2'!$E$11)","v":0},327,327,0]
[null,null,null,{"$f":"SUMIF('2'!$D$11,#REF!,'2'!$E$11)","v":0},328,328,0]
[null,null,null,{"$f":"SUMIF('2'!$D$11,#REF!,'2'!$E$11)","v":0},329,329,0]
[null,null,null,{"$f":"SUMIF('2'!$D$11,#REF!,'2'!$E$11)","v":0},330,330,0]
[null,null,null,{"$f":"SUMIF('2'!$D$11,#REF!,'2'!$E$11)","v":0},331,331,0]
[null,null,null,{"$f":"SUMIF('2'!$D$11,#REF!,'2'!$E$11)","v":0},332,332,0]
[null,null,null,{"$f":"SUMIF('2'!$D$11,#REF!,'2'!$E$11)","v":0},333,333,0]
[null,null,null,{"$f":"SUMIF('2'!$D$11,#REF!,'2'!$E$11)","v":0},334,334,0]
[null,null,null,{"$f":"SUMIF('2'!$D$11,#REF!,'2'!$E$11)","v":0},335,335,0]
[null,null,null,{"$f":"SUMIF('2'!$D$11,#REF!,'2'!$E$11)","v":0},336,336,0]
[null,null,null,{"$f":"SUMIF('2'!$D$11,#REF!,'2'!$E$11)","v":0},337,337,0]
[null,null,null,{"$f":"SUMIF('2'!$D$11,#REF!,'2'!$E$11)","v":0},338,338,0]
[null,null,null,{"$f":"SUMIF('2'!$D$11,#REF!,'2'!$E$11)","v":0},339,339,0]
[null,null,null,{"$f":"SUMIF('2'!$D$11,#REF!,'2'!$E$11)","v":0},340,340,0]
[null,null,null,{"$f":"SUMIF('2'!$D$11,#REF!,'2'!$E$11)","v":0},341,341,0]
[null,null,null,{"$f":"SUMIF('2'!$D$11,#REF!,'2'!$E$11)","v":0},342,342,0]
[null,null,null,{"$f":"SUMIF('2'!$D$11,#REF!,'2'!$E$11)","v":0},343,343,0]
[null,null,null,{"$f":"SUMIF('2'!$D$11,#REF!,'2'!$E$11)","v":0},344,344,0]
[null,null,null,{"$f":"SUMIF('2'!$D$11,#REF!,'2'!$E$11)","v":0},345,345,0]
[null,null,null,{"$f":"SUMIF('2'!$D$11,#REF!,'2'!$E$11)","v":0},346,346,0]
[null,null,null,{"$f":"SUMIF('2'!$D$11,#REF!,'2'!$E$11)","v":0},347,347,0]
[null,null,null,{"$f":"SUMIF('2'!$D$11,#REF!,'2'!$E$11)","v":0},348,348,0]
[null,null,null,{"$f":"SUMIF('2'!$D$11,#REF!,'2'!$E$11)","v":0},349,349,0]
[null,null,null,{"$f":"SUMIF('2'!$D$11,#REF!,'2'!$E$11)","v":0},350,350,0]
[null,null,null,{"$f":"SUMIF('2'!$D$11,#REF!,'2'!$E$11)","v":0},351,351,0]
[null,null,null,{"$f":"SUMIF('2'!$D$11,#REF!,'2'!$E$11)","v":0},352,352,0]
[null,null,null,{"$f":"SUMIF('2'!$D$11,#REF!,'2'!$E$11)","v":0},353,353,0]
[null,null,null,{"$f":"SUMIF('2'!$D$11,#REF!,'2'!$E$11)","v":0},354,354,0]

{"sheet":"1","index":5,"n_rows":55,"n_cols":4,"rows_kept":55,"cut":false,"hidden":false,"merged":[[2,4,9,4]]}
[]
[]
[]
[]
[]
[]
[]
[]
[]
[]
[]
["st moret","FOURNISSEUR","ARTICLE","QUANTIE"]
[null,null,null,8]
[null,null,"œuf durs ",360]
[null,null,"tome blanche ",6.1820000000000004]
[null,null,"st paulin a la coupe ",1.796]
[null,null,"st moret ",360]
[null,null,"st marcelin ",16]
[null,null,"iles flottantes",800]
[null,null,"gruyere bloc ",3.105]
[null,null,"creme fraiche ",12]
[null,null,"camembert portion",384]
[null,null,"camembert",15]
[null,null,"buche de pilat",1]
[null,null,"brie ",2.4359999999999999]
[null,null,"beurre plaquette",10]
[null,null,"banane",18.5]
[null,null,"orange ",30.9]
[null,null,"pomme ",68]
[null,null,"persil botte",5]
[null,null,"ail frais",1.2]
[null,null,"salade verte",18]
[null,null,"huile de tournesol ",20]
[null,null,"huile de colza ",20]
[null,null,"huile d olive ",20]
[null,null,"macaroni",50]
[null,null,"vin blanc vrac ",40]
[null,null,"vin rouge vrac ",10]
["2016-01-04",null,"pain ",110]
["2016-01-03","davigel","poivrons lanieres ",10]
["2016-01-03","davigel","petits pois carottes surgeles ",90]
["2016-01-03","davigel","oignon surgeles ",10]
["2016-01-03","davigel","pommes de terre campagnardes",200]
["2016-01-03","davigel","feuillete au fromage ",495]
["2016-01-03","davigel","feuillete hot dog ",312]
["2016-01-03","braike France","steack hachés",96]
["2016-01-03","rpda miko","cordon bleu ",100]
["2016-01-03","broc marche","st moret ",240]
["2016-01-03","broc marche","bombel",480]
["2016-01-03","broc marche","vache qui rit",80]
["2016-01-03","broc marche","mayonnaise seaux",2]
["2016-01-14","AXIMA","RINCAGE FOUR (AXI RINCE)",2]
["2016-01-14","AXIMA","LAVAGE FOUR (AXI JET NET)",2]
["2016-01-05","PRODIM","SURFA CID",4]
["2016-01-05","PRODIM","SURFA GERME",8]

{"sheet":"2","index":6,"n_rows":11,"n_cols":5,"rows_kept":11,"cut":false,"hidden":false,"merged":[]}
[]
[]
[]
[]
[]
["DATE","AGENTS","CUISINE =1","ARTICLE","QUANTIE"]
[null,null,"CLASSE =2"]
[]
["2016-01-04",null,null,"pain ",106]
[null,null,null,"pain ",106]
["2016-01-04","severine",2,"DOSE LAVAGE",30]